Workbook

Sheet Cover
B1: Registered User: | G1: Free Trial Version - Not For Commercial Use | AF1: © 2017 CivilWeb
B2: Your Logo / Company Details Here | G2: Project: | AF2: By:
G3: Calculation: | M3: ='[1]Combined Pad Foundation'!M3:AE3 -> Pad Foundation Design (BS) - Complex
AF4: Approved:
G5: Sheet Number: | M5: Cover Sheet | T5: Date:
H7: Although all care and attention has been taken to ensure that this program is accurate, CivilWeb gives no guarentee that it is error free. In no event will Civil Web accept any responsibility for any errors or omissions from the program or from the user of the program, or for any special, incedental or consequential damages whatsoever arising from use of this program.
H14: This program should only be used by a suitably qualified Civil or Structural Engineer, and suitable efforts should be taken to verify the results.
H18: Reverse-engineering or decompiling of this program is not allowed.
H20: This program is registered to a single user, and should not be used by any other.
H23: Registered User;
H24: Free Trial Version
H26: By using this program you confirm your understanding and agreement with the above terms and conditions.
H29: This program remains the property of CivilWeb.
H30: www.civilweb-spreadsheets.com
H32: Revision Schedule
H34: Rev | J34: Changes | Z34: Date
H35: 0 | J35: Original | Z35: 2017-08-01

Sheet Single Pad Foundation Design
B1: Registered User: | G1: Free Trial Version - Not For Commercial Use | AF1: © 2017 CivilWeb
B2: Your Logo / Company Details Here | G2: Project: | AF2: By: | EJ2: =Q61 -> 0.5 | EL2: =IF(MAX($EI$7:$EJ$11,$EJ$2)>2,EJ2*(2/MAX($EI$7:$EJ$11,$EJ$2)),EJ2) -> 0.3333333333 | EN2: -3 | EO2: 3 | GD2: Bearing Capacity of soil | GE2: =S9 -> 175 | GF2: kN/m2 | GS2: Bearing Capacity of soil | GT2: =S9 -> 175 | GU2: kN/m2
G3: Calculation: | M3: Single Pad Foundation Design (BS) - Complex | EN3: 3 | EO3: 3 | GD3: Column Size (square) | GE3: =Q59 -> 400 | GF3: mm | GS3: Column Size x | GT3: =Q59 -> 400 | GU3: mm
AF4: Approved: | GD4: fcu | GE4: =S111 -> 40 | GF4: N/mm2 | GS4: Column Size y | GT4: =Q60 -> 400 | GU4: mm
G5: Sheet Number: | M5: 1 | T5: Date: | EI5: =MAX(EI7:EJ11) -> 3 | EJ5: =MIN(EI7:EJ11) -> 0 | GD5: fy | GE5: =S112 -> 500 | GF5: N/mm2 | GS5: fcu | GT5: =S111 -> 40 | GU5: N/mm2
DM6: =MIN(EN7:EN11) -> 0 | DN6: =MIN(EO7:EO11) -> 2.333333333 | EI6: shape | EL6: Scale Size | EN6: Position | GD6: yc | GE6: 1.5 | GS6: fy | GT6: =S112 -> 500 | GU6: N/mm2
H7: Soil Data | DM7: =DM6 -> 0 | DN7: =DN6-1 -> 1.333333333 | EI7: 0 | EJ7: =Q64 -> 0.5 | EL7: =IF(MAX($EI$7:$EJ$11,$EJ$2)>2,EI7*(2/MAX($EI$7:$EJ$11,$EJ$2)),IF(MIN($EI$7:$EJ$11,$EJ$2)<-2,EI7*(2/MAX($EI$7:$EJ$11,$EJ$2)),EI7)) -> 0 | EM7: =IF(MAX($EI$7:$EJ$11,$EJ$2)>2,EJ7*(2/MAX($EI$7:$EJ$11,$EJ$2)),EJ7) -> 0.3333333333 | EN7: =IF(MAX($EL$7:$EL$11)=2,EL7,EL7+0.5*(2-MAX($EL$7:$EL$11))) -> 0 | EO7: =EO3-EL2 -> 2.666666667 | ES7: 6 | ET7: =PI()*(ES7/2)^2 -> 28.27433388 | EU7: 6 | EV7: 6 | EX7: =ET21 -> 5026.548246 | EY7: =EU21 -> 4 x 40 | FC7: 6 | FD7: 8 | FE7: 10 | FF7: 12 | FG7: 16 | FH7: 20 | FI7: 25 | FJ7: 32 | FK7: 40 | FL7: 2 x 32 | FM7: 3 x 32 | FN7: 2 x 40 | FO7: 4 x 32 | FP7: 3 x 40 | FQ7: 4 x 40 | GS7: angle internal soil friction | GT7: =S10 -> 20 | GU7: degrees
DM8: =MAX(EN7:EN11) -> 2 | DN8: =DN7-(GT49/GT48) -> 0.7676767677 | EI8: =Q62 -> 3 | EJ8: =EJ7 -> 0.5 | EL8: =IF(MAX($EI$7:$EJ$11,$EJ$2)>2,EI8*(2/MAX($EI$7:$EJ$11,$EJ$2)),IF(MIN($EI$7:$EJ$11,$EJ$2)<-2,EI8*(2/MAX($EI$7:$EJ$11,$EJ$2)),EI8)) -> 2 | EM8: =IF(MAX($EI$7:$EJ$11,$EJ$2)>2,EJ8*((2)/MAX($EI$7:$EJ$11,$EJ$2)),EJ8) -> 0.3333333333 | EN8: =IF(MAX($EL$7:$EL$11)=2,EL8,EL8+0.5*(2-MAX($EL$7:$EL$11))) -> 2 | EO8: =EO7 -> 2.666666667 | ES8: 8 | ET8: =PI()*(ES8/2)^2 -> 50.26548246 | EU8: 8 | EV8: 8 | EX8: =ET20 -> 3769.911184 | EY8: =EU20 -> 3 x 40 | FC8: =PI()*(FC7/2)^2 -> 28.27433388 | FD8: 50.26548246 | FE8: 78.53981634 | FF8: 113.0973355 | FG8: 201.0619298 | FH8: 314.1592654 | FI8: 490.8738521 | FJ8: 804.2477193 | FK8: 1256.637061 | FL8: =FJ8*2 -> 1608.495439 | FM8: =FJ8*3 -> 2412.743158 | FN8: =FK8*2 -> 2513.274123 | FO8: =FL8*2 -> 3216.990877 | FP8: =FK8*3 -> 3769.911184 | FQ8: =FN8*2 -> 5026.548246 | GD8: Column loads | GK8: 6 | GL8: =PI()*(GK8/2)^2 -> 28.27433388 | GM8: 6 | GP8: =GL22 -> 5026.548246 | GQ8: =GM22 -> 4 x 40 | GS8: soil density | GT8: =S11 -> 18 | GU8: kN/m3
H9: Bearing Capacity of Soil | S9: 175 | U9: kN/m² | DM9: =DM8 -> 2 | DN9: =DN6 -> 2.333333333 | EI9: =EI8 -> 3 | EJ9: 0 | EL9: =IF(MAX($EI$7:$EJ$11,$EJ$2)>2,EI9*(2/MAX($EI$7:$EJ$11,$EJ$2)),IF(MIN($EI$7:$EJ$11,$EJ$2)<-2,EI9*(2/MAX($EI$7:$EJ$11,$EJ$2)),EI9)) -> 2 | EM9: =IF(MAX($EI$7:$EJ$11,$EJ$2)>2,EJ9*((2)/MAX($EI$7:$EJ$11,$EJ$2)),EJ9) -> 0 | EN9: =IF(MAX($EL$7:$EL$11)=2,EL9,EL9+0.5*(2-MAX($EL$7:$EL$11))) -> 2 | EO9: =EO8-EM8 -> 2.333333333 | ES9: 10 | ET9: 78.53981634 | EU9: 10 | EV9: 10 | EX9: =ET19 -> 3216.990877 | EY9: =EU19 -> 4 x 32 | GD9: dead load | GE9: =S20 -> 500 | GF9: kN | GK9: 8 | GL9: =PI()*(GK9/2)^2 -> 50.26548246 | GM9: 8 | GP9: =GL21 -> 3769.911184 | GQ9: =GM21 -> 3 x 40 | GS9: cohesion | GT9: =S12 -> 0 | GU9: kN/m2
H10: Angle of Internal Soil Friction | S10: 20 | U10: degrees | EI10: 0 | EJ10: =EJ9 -> 0 | EL10: =IF(MAX($EI$7:$EJ$11,$EJ$2)>2,EI10*(2/MAX($EI$7:$EJ$11,$EJ$2)),IF(MIN($EI$7:$EJ$11,$EJ$2)<-2,EI10*(2/MAX($EI$7:$EJ$11,$EJ$2)),EI10)) -> 0 | EM10: =IF(MAX($EI$7:$EJ$11,$EJ$2)>2,EJ10*((2)/MAX($EI$7:$EJ$11,$EJ$2)),EJ10) -> 0 | EN10: =IF(MAX($EL$7:$EL$11)=2,EL10,EL10+0.5*(2-MAX($EL$7:$EL$11))) -> 0 | EO10: =EO9 -> 2.333333333 | ES10: 12 | ET10: 113.0973355 | EU10: 12 | EV10: 12 | EX10: =ET18 -> 2513.274123 | EY10: =EU18 -> 2 x 40 | GD10: live load | GE10: =S23 -> 250 | GF10: kN | GK10: 10 | GL10: 78.53981634 | GM10: 10 | GP10: =GL20 -> 3216.990877 | GQ10: =GM20 -> 4 x 32 | GS10: FoS Steel | GT10: =S113 -> 1.15
H11: Soil Density | S11: 18 | U11: kN/m³ | DL11: =ROUNDUP(GT49,0)&"kNm2" -> 115kNm2 | DM11: -0.25 | DN11: =DN7 -> 1.333333333 | EI11: =EI7 -> 0 | EJ11: =EJ7 -> 0.5 | EL11: =IF(MAX($EI$7:$EJ$11,$EJ$2)>2,EI11*(2/MAX($EI$7:$EJ$11,$EJ$2)),IF(MIN($EI$7:$EJ$11,$EJ$2)<-2,EI11*(2/MAX($EI$7:$EJ$11,$EJ$2)),EI11)) -> 0 | EM11: =IF(MAX($EI$7:$EJ$11,$EJ$2)>2,EJ11*((2)/MAX($EI$7:$EJ$11,$EJ$2)),EJ11) -> 0.3333333333 | EN11: =IF(MAX($EL$7:$EL$11)=2,EL11,EL11+0.5*(2-MAX($EL$7:$EL$11))) -> 0 | EO11: =EO7 -> 2.666666667 | ES11: 16 | ET11: 201.0619298 | EU11: 16 | EV11: 16 | EX11: =ET17 -> 2412.743158 | EY11: =EU17 -> 3 x 32 | FA11: 1 | FB11: =IF((($Q$63*1000-$S$114*2-40)/(FA11-1))>300,NA(),IF((($Q$63*1000-$S$114*2-40)/(FA11-1))<(65),NA(),FA11)) ->  | FC11: =IF($FB12*FC$8<$GT$54,NA(),IF($FA9*FC$8>$GT$54,NA(),IF($FB11*FC$8>1.25*$GT$54,NA(),IF($FB11*FC$8<0.9*$GT$54,NA(),$FB11*FC$8)))) ->  | FD11: =IF($FB12*FD$8<$GT$54,NA(),IF($FA9*FD$8>$GT$54,NA(),IF($FB11*FD$8>1.25*$GT$54,NA(),IF($FB11*FD$8<0.9*$GT$54,NA(),$FB11*FD$8)))) ->  | GK11: 12 | GL11: 113.0973355 | GM11: 12 | GP11: =GL19 -> 2513.274123 | GQ11: =GM19 -> 2 x 40 | GS11: Column loads | GZ11: 6 | HA11: =PI()*(GZ11/2)^2 -> 28.27433388 | HB11: 6 | HE11: =HA25 -> 5026.548246 | HF11: =HB25 -> 4 x 40
H12: Cohesion | S12: 0 | U12: kN/m² | DM12: =AVERAGE(DM11,DM13) -> -0.25 | DN12: =AVERAGE(DN11,DN13) -> 1.833333333 | ES12: 20 | ET12: 314.1592654 | EU12: 20 | EV12: 20 | EX12: =ET16 -> 1608.495439 | EY12: =EU16 -> 2 x 32 | FA12: 2 | FB12: =IF((($Q$63*1000-$S$114*2-40)/(FA12-1))>300,NA(),IF((($Q$63*1000-$S$114*2-40)/(FA12-1))<(65),NA(),FA12)) ->  | FC12: =IF($FB13*FC$8<$GT$54,NA(),IF($FA10*FC$8>$GT$54,NA(),IF($FB12*FC$8>1.25*$GT$54,NA(),IF($FB12*FC$8<0.9*$GT$54,NA(),$FB12*FC$8)))) ->  | GD12: FoS | GK12: 16 | GL12: 201.0619298 | GM12: 16 | GP12: =GL18 -> 2412.743158 | GQ12: =GM18 -> 3 x 32 | GS12: dead load | GT12: =SUM(S20:T22) -> 600 | GU12: kN | GZ12: 8 | HA12: =PI()*(GZ12/2)^2 -> 50.26548246 | HB12: 8 | HE12: =HA24 -> 3769.911184 | HF12: =HB24 -> 3 x 40
BV13: Maximum Bearing Pressure | DM13: =DM11 -> -0.25 | DN13: =MAX(DN6:DN9) -> 2.333333333 | EI13: rec2 | EL13: master | EN13: master2 | ES13: 25 | ET13: 490.8738521 | EU13: 25 | EV13: 25 | EX13: =ET15 -> 1256.637061 | EY13: =EU15 -> 40 | FA13: 3 | GD13: Dead Fos 1 | GE13: 1 | GK13: 20 | GL13: 314.1592654 | GM13: 20 | GP13: =GL17 -> 1608.495439 | GQ13: =GM17 -> 2 x 32 | GS13: live load | GT13: =SUM(S23:T25) -> 250 | GU13: kN | GZ13: 10 | HA13: 78.53981634 | HB13: 10 | HE13: =HA23 -> 3216.990877 | HF13: =HB23 -> 4 x 32
H14: Loading Data | BV14: 0 | BW14: =S9 -> 175 | DL14: =ROUNDUP(GT50,0)&"kNm2" -> 165kNm2 | DM14: =MAX(EN14:EN18) -> 1.133333333 | DN14: =DN13 -> 2.333333333 | EI14: 0 | EJ14: 0 | EL14: =IF(MAX($EI$7:$EJ$11)>2,EI14*(2/MAX($EI$7:$EJ$11)),EI14) -> 0 | EM14: =IF(MAX($EI$27:$EJ$31)>2,EJ14*(2/MAX($EI$27:$EJ$31)),EJ14) -> 0 | EN14: =EL14+1-0.5*$EL$16 -> 0.8666666667 | EO14: =MAX(EO7:EO11) -> 2.666666667 | ES14: 32 | ET14: 804.2477193 | EU14: 32 | EV14: 32 | EX14: =ET14 -> 804.2477193 | EY14: =EU14 -> 32 | FA14: 4 | GD14: Live Fos 1 | GE14: 1.3 | GK14: 25 | GL14: 490.8738521 | GM14: 25 | GP14: =GL16 -> 1256.637061 | GQ14: =GM16 -> 40 | GS14: Moment dead | GT14: =SUM(S27:T29) -> 70 | GU14: kNm | GZ14: 12 | HA14: 113.0973355 | HB14: 12 | HE14: =HA22 -> 2513.274123 | HF14: =HB22 -> 2 x 40
BV15: =BL18 -> 15.6 | BW15: =S9 -> 175 | DM15: =AVERAGE(DM14,DM16) -> 1.133333333 | DN15: =AVERAGE(DN14,DN16) -> 1.61577381 | EI15: =Q59/1000 -> 0.4 | EJ15: 0 | EL15: =IF(MAX($EI$7:$EJ$11)>2,EI15*(2/MAX($EI$7:$EJ$11)),EI15) -> 0.2666666667 | EM15: =IF(MAX($EI$27:$EJ$31)>2,EJ15*(2/MAX($EI$27:$EJ$31)),EJ15) -> 0 | EN15: =EL15+1-0.5*$EL$16 -> 1.133333333 | EO15: =EO14 -> 2.666666667 | ES15: 40 | ET15: 1256.637061 | EU15: 40 | EV15: 40 | EX15: =ET13 -> 490.8738521 | EY15: =EU13 -> 25 | FA15: 5 | GD15: Dead Fos 2 | GE15: =S17 -> 1.4 | GK15: 32 | GL15: 804.2477193 | GM15: 32 | GP15: =GL15 -> 804.2477193 | GQ15: =GM15 -> 32 | GS15: Moment Imposed | GT15: =SUM(S30:T32) -> 30 | GU15: kNm | GZ15: 16 | HA15: 201.0619298 | HB15: 16 | HE15: =HA21 -> 2412.743158 | HF15: =HB21 -> 3 x 32
H16: Factor of Safety | BX16: =Q63*0.75 -> 1.95 | CD16: =EM48 -> 7.176 | DM16: =DM14 -> 1.133333333 | DN16: =DN6-(GT50/GT49) -> 0.8982142857 | EI16: =EI15 -> 0.4 | EJ16: 2 | EL16: =IF(MAX($EI$7:$EJ$11)>2,EI16*(2/MAX($EI$7:$EJ$11)),EI16) -> 0.2666666667 | EM16: =IF(MAX($EI$27:$EJ$31)>2,EJ16*(2/MAX($EI$27:$EJ$31)),EJ16) -> 1.333333333 | EN16: =EL16+1-0.5*$EL$16 -> 1.133333333 | EO16: 3.4 | ES16: 2 x 32 | ET16: =ET14*2 -> 1608.495439 | EU16: 2 x 32 | EV16: 32 | EX16: =ET12 -> 314.1592654 | EY16: =EU12 -> 20 | FA16: 6 | GD16: Live Fos 2 | GE16: =S18 -> 1.6 | GK16: 40 | GL16: 1256.637061 | GM16: 40 | GP16: =GL14 -> 490.8738521 | GQ16: =GM14 -> 25 | GS16: Horizontal Load dead | GT16: =SUM(S34:T36) -> 20 | GU16: kN | GZ16: 20 | HA16: 314.1592654 | HB16: 20 | HE16: =HA20 -> 1608.495439 | HF16: =HB20 -> 2 x 32
H17: Factor of Safety (Dead) | S17: 1.4 | BL17: X | BM17: SW 100% | BN17: X | BO17: Y | BP17: Z | BQ17: Required Area | BR17: Area Provided | BU17: ="Maximum Earth Pressure = "&S9&"kN/m²" -> Maximum Earth Pressure = 175kN/m² | BV17: Axial Bearing Pressure | BX17: Z | BY17: Total Sliding Resistance | CA17: X | CB17: Y | CE17: X | CF17: Y | DL17: =ROUNDUP(GT48,0)&"kNm2" -> 204kNm2 | DM17: 2.25 | DN17: =MIN(DN6:DN9) -> 0.7676767677 | EI17: 0 | EJ17: =EJ16 -> 2 | EL17: =IF(MAX($EI$7:$EJ$11)>2,EI17*(2/MAX($EI$7:$EJ$11)),EI17) -> 0 | EM17: =IF(MAX($EI$27:$EJ$31)>2,EJ17*(2/MAX($EI$27:$EJ$31)),EJ17) -> 1.333333333 | EN17: =EL17+1-0.5*$EL$16 -> 0.8666666667 | EO17: =EO16 -> 3.4 | ES17: 3 x 32 | ET17: =ET14*3 -> 2412.743158 | EU17: 3 x 32 | EV17: 32 | EX17: =ET11 -> 201.0619298 | EY17: =EU11 -> 16 | FA17: 7 | GD17: total load 1 | GE17: =GE9*GE13+GE10*GE14 -> 825 | GF17: kN | GK17: 2 x 32 | GL17: =GL15*2 -> 1608.495439 | GM17: 2 x 32 | GP17: =GL13 -> 314.1592654 | GQ17: =GM13 -> 20 | GS17: Horizontal Load imposed | GT17: =SUM(S37:T39) -> 15 | GU17: kN | GZ17: 25 | HA17: 490.8738521 | HB17: 25 | HE17: =HA19 -> 1256.637061 | HF17: =HB19 -> 40
H18: Factor of Safety (Imposed) | S18: 1.6 | BK18: 100 | BL18: =$Q$62*$Q$63*(2*BK18%) -> 15.6 | BM18: =$Q$64*BL18*24 -> 187.2 | BN18: =$Q$62*(2*BK18%) -> 6 | BO18: =$Q$63*(2*BK18%) -> 5.2 | BP18: =(BO18*BN18^2)/6 -> 31.2 | BQ18: =($GT$12+$GT$13+BM18)/$GT$2 -> 5.926857143 | BR18: =BL18 -> 15.6 | BS18: =BQ18-BR18 -> -9.673142857 | BT18: =BL18 -> 15.6 | BU18: =($GT$12+$GT$13+$GT$29+$GT$25*BN18*BO18*24)/(BN18*BO18)+($GT$14+$GT$15+($GT$28*($GT$16+$GT$17)))/BP18 -> 46.00961538 | BV18: =($GT$12+$GT$13+BM18)/BL18 -> 66.48717949 | BW18: =BU18-200 -> -153.9903846 | BX18: =$Q$64*(2*BK18%) -> 1 | BY18: =(IF($GT$7=0,0,0.5*BX18*MIN($GT$27)*(((1+SIN(RADIANS($GT$7)))/(1-SIN(RADIANS($GT$7)))*$GT$8*$GT$25)+((1+SIN(RADIANS($GT$7)))/(1-SIN(RADIANS($GT$7)))*($GT$25+BX18)*$GT$8)))+(TAN(RADIANS($GT$7))*($GT$12+$GT$26*$GT$27*BX18*24)))+(IF($GT$7=0,2*$GT$9*MIN($GT$27)*BX18+(0.5*MIN($GT$27)*BX18*(($GT$7*$GT$25)+($GT$8*(BX18+$GT$25)))),0)) -> 381.9709633 | BZ18: =BX18 -> 1 | CA18: =$Q$62*(2*BK18%) -> 6 | CB18: =(CA18*($GT$12+$GT$13)+6*($GT$14+$GT$15)+6*($GT$16+$GT$17)*$Q$64)/(CA18^2*($S$9-24*$Q$64-24*$Q$61)) -> 1.067880795 | CD18: 100 | CE18: =$Q$62*2*CD18% -> 6 | CF18: =$CD$16/CE18 -> 1.196 | DM18: =AVERAGE(DM17,DM19) -> 2.25 | DN18: =AVERAGE(DN17,DN19) -> 1.550505051 | EI18: =EI14 -> 0 | EJ18: =EJ14 -> 0 | EL18: =IF(MAX($EI$7:$EJ$11)>2,EI18*(2/MAX($EI$7:$EJ$11)),EI18) -> 0 | EM18: =IF(MAX($EI$27:$EJ$31)>2,EJ18*(2/MAX($EI$27:$EJ$31)),EJ18) -> 0 | EN18: =EL18+1-0.5*$EL$16 -> 0.8666666667 | EO18: =EO14 -> 2.666666667 | ES18: 2 x 40 | ET18: =ET15*2 -> 2513.274123 | EU18: 2 x 40 | EV18: 40 | EX18: =ET10 -> 113.0973355 | EY18: =EU10 -> 12 | FA18: 8 | GD18: total load 2 | GE18: =GE9*GE15+GE10*GE16 -> 1100 | GF18: kN | GK18: 3 x 32 | GL18: =GL15*3 -> 2412.743158 | GM18: 3 x 32 | GP18: =GL12 -> 201.0619298 | GQ18: =GM12 -> 16 | GS18: Dead Fos | GT18: =S17 -> 1.4 | GZ18: 32 | HA18: 804.2477193 | HB18: 32 | HE18: =HA18 -> 804.2477193 | HF18: =HB18 -> 32
BK19: 99 | BL19: 15.444 | BM19: 185.328 | BN19: 5.94 | BO19: 5.148 | BP19: =(BO19*BN19^2)/6 -> 30.2733288 | BQ19: 5.91616 | BR19: =BL19 -> 15.444 | BS19: -9.52784 | BT19: 15.444 | BU19: =($GT$12+$GT$13+$GT$29+$GT$25*BN19*BO19*24)/(BN19*BO19)+($GT$14+$GT$15+($GT$28*($GT$16+$GT$17)))/BP19 -> 46.73896138 | BV19: =($GT$12+$GT$13+BM19)/BL19 -> 67.03755504 | BW19: =BU19-200 -> -153.2610386 | BX19: 0.99 | BY19: =(IF($GT$7=0,0,0.5*BX19*MIN($GT$27)*(((1+SIN(RADIANS($GT$7)))/(1-SIN(RADIANS($GT$7)))*$GT$8*$GT$25)+((1+SIN(RADIANS($GT$7)))/(1-SIN(RADIANS($GT$7)))*($GT$25+BX19)*$GT$8)))+(TAN(RADIANS($GT$7))*($GT$12+$GT$26*$GT$27*BX19*24)))+(IF($GT$7=0,2*$GT$9*MIN($GT$27)*BX19+(0.5*MIN($GT$27)*BX19*(($GT$7*$GT$25)+($GT$8*(BX19+$GT$25)))),0)) -> 379.8625798 | BZ19: =BX19 -> 0.99 | CA19: 5.94 | CB19: =(CA19*($GT$12+$GT$13)+6*($GT$14+$GT$15)+6*($GT$16+$GT$17)*$Q$64)/(CA19^2*($S$9-24*$Q$64-24*$Q$61)) -> 1.079990711 | CD19: 99 | CE19: 5.94 | CF19: =$CD$16/CE19 -> 1.208080808 | DM19: =DM17 -> 2.25 | DN19: =MAX(DN6:DN9) -> 2.333333333 | ES19: 4 x 32 | ET19: =ET16*2 -> 3216.990877 | EU19: 4 x 32 | EV19: 32 | EX19: =ET9 -> 78.53981634 | EY19: =EU9 -> 10 | FA19: 9 | GK19: 2 x 40 | GL19: =GL16*2 -> 2513.274123 | GM19: 2 x 40 | GP19: =GL11 -> 113.0973355 | GQ19: =GM11 -> 12 | GS19: Live Fos | GT19: =S18 -> 1.6 | GZ19: 40 | HA19: 1256.637061 | HB19: 40 | HE19: =HA17 -> 490.8738521 | HF19: =HB17 -> 25
H20: Axial Load 1 (Dead) | S20: 500 | U20: kN | BK20: 98 | BL20: 15.288 | BM20: 183.456 | BN20: 5.88 | BO20: 5.096 | BP20: 29.3651904 | BQ20: 5.905462857 | BR20: 15.288 | BS20: -9.382537143 | BT20: 15.288 | BU20: 47.49195445 | BV20: 67.59916274 | BW20: -152.5080456 | BX20: 0.98 | BY20: 377.7637417 | BZ20: 0.98 | CA20: 5.88 | CB20: 1.09237505 | CD20: 98 | CE20: 5.88 | CF20: 1.220408163 | EH20: =Q62&"m" -> 3m | EI20: =MIN(EN7:EN11) -> 0 | EJ20: -0.4 | EL20: =Q64&"m" -> 0.5m | EM20: 2.25 | EN20: =MIN(EO7:EO11) -> 2.333333333 | EO20: =Q61&"m" -> 0.5m | EP20: -0.25 | EQ20: =EO3 -> 3 | ES20: 3 x 40 | ET20: =ET15*3 -> 3769.911184 | EU20: 3 x 40 | EV20: 40 | EX20: =ET8 -> 50.26548246 | EY20: =EU8 -> 8 | FA20: 10 | FB20: 10 | GD20: Dimensions | GK20: 4 x 32 | GL20: =GL17*2 -> 3216.990877 | GM20: 4 x 32 | GP20: =GL10 -> 78.53981634 | GQ20: =GM10 -> 10 | GS20: total axial load | GT20: =GT12*GT18+GT13*GT19 -> 1240 | GU20: kN | GZ20: 2 x 32 | HA20: =HA18*2 -> 1608.495439 | HB20: 2 x 32 | HE20: =HA16 -> 314.1592654 | HF20: =HB16 -> 20
H21: Axial Load 2 (Dead) | S21: 100 | U21: kN | BK21: 97 | BL21: 15.132 | BM21: 181.584 | BN21: 5.82 | BO21: 5.044 | BP21: 28.4753976 | BQ21: 5.894765714 | BR21: 15.132 | BS21: -9.237234286 | BT21: 15.132 | BU21: 48.26962526 | BV21: 68.17234999 | BW21: -151.7303747 | BX21: 0.97 | BY21: 375.6744488 | BZ21: 0.97 | CA21: 5.82 | CB21: 1.105043149 | CD21: 97 | CE21: 5.82 | CF21: 1.232989691 | EI21: =AVERAGE(EI20,EI22) -> 1 | EJ21: =EJ20 -> -0.4 | EM21: =EM20 -> 2.25 | EN21: =AVERAGE(EN20,EN22) -> 2.5 | EP21: =EP20 -> -0.25 | EQ21: =AVERAGE(EQ20,EQ22) -> 2.833333333 | ES21: 4 x 40 | ET21: =ET18*2 -> 5026.548246 | EU21: 4 x 40 | EV21: 40 | EX21: =ET7 -> 28.27433388 | EY21: =EU7 -> 6 | FA21: 11 | FB21: 11 | FG21: 2211.681228 | GD21: x | GE21: =Q63 -> 2.6 | GF21: m | GK21: 3 x 40 | GL21: =GL16*3 -> 3769.911184 | GM21: 3 x 40 | GP21: =GL9 -> 50.26548246 | GQ21: =GM9 -> 8 | GS21: Total moment | GT21: =GT14*GT18+GT15*GT19 -> 146 | GU21: kNm | GZ21: 3 x 32 | HA21: =HA18*3 -> 2412.743158 | HB21: 3 x 32 | HE21: =HA15 -> 201.0619298 | HF21: =HB15 -> 16
H22: Axial Load 3 (Dead) | S22: 0 | U22: kN | BK22: 96 | BL22: 14.976 | BM22: 179.712 | BN22: 5.76 | BO22: 4.992 | BP22: 27.6037632 | BQ22: 5.884068571 | BR22: 14.976 | BS22: -9.091931429 | BT22: 14.976 | BU22: 49.07306111 | BV22: 68.75747863 | BW22: -150.9269389 | BX22: 0.96 | BY22: 373.5947014 | BZ22: 0.96 | CA22: 5.76 | CB22: 1.118004775 | CD22: 96 | CE22: 5.76 | CF22: 1.245833333 | EI22: =MAX(EN7:EN11) -> 2 | EJ22: =EJ21 -> -0.4 | EM22: =EM21 -> 2.25 | EN22: =MAX(EO7:EO11) -> 2.666666667 | EP22: =EP21 -> -0.25 | EQ22: =EO3-EL2 -> 2.666666667 | FA22: 12 | FB22: 12 | FG22: 2412.743158 | GD22: z | GE22: =Q64 -> 0.5 | GF22: m | GK22: 4 x 40 | GL22: =GL19*2 -> 5026.548246 | GM22: 4 x 40 | GP22: =GL8 -> 28.27433388 | GQ22: =GM8 -> 6 | GS22: Total Horizontal Load | GT22: =GT16*GT18+GT17*GT19 -> 52 | GU22: kN | GZ22: 2 x 40 | HA22: =HA19*2 -> 2513.274123 | HB22: 2 x 40 | HE22: =HA14 -> 113.0973355 | HF22: =HB14 -> 12
H23: Axial Load 1 (Imposed) | S23: 250 | U23: kN | BK23: 95 | BL23: 14.82 | BM23: 177.84 | BN23: 5.7 | BO23: 4.94 | BP23: 26.7501 | BQ23: 5.873371429 | BR23: 14.82 | BS23: -8.946628571 | BT23: 14.82 | BU23: 49.90340971 | BV23: 69.35492578 | BW23: -150.0965903 | BX23: 0.95 | BY23: 371.5244993 | BZ23: 0.95 | CA23: 5.7 | CB23: 1.131270141 | CD23: 95 | CE23: 5.7 | CF23: 1.258947368 | FA23: 13 | FB23: 13 | FG23: 2613.805088 | GD23: self weight | GE23: =GE22*GE21*GE21*24 -> 81.12 | GF23: kN | GZ23: 4 x 32 | HA23: =HA20*2 -> 3216.990877 | HB23: 4 x 32 | HE23: =HA13 -> 78.53981634 | HF23: =HB13 -> 10
H24: Axial Load 2 (Imposed) | S24: 0 | U24: kN | BK24: 94 | BL24: 14.664 | BM24: 175.968 | BN24: 5.64 | BO24: 4.888 | BP24: 25.9142208 | BQ24: 5.862674286 | BR24: 14.664 | BS24: -8.801325714 | BT24: 14.664 | BU24: 50.76188321 | BV24: 69.96508456 | BW24: -149.2381168 | BX24: 0.94 | BY24: 369.4638426 | BZ24: 0.94 | CA24: 5.64 | CB24: 1.144849937 | CD24: 94 | CE24: 5.64 | CF24: 1.272340426 | FA24: 14 | FB24: 14 | GS24: Dimensions | GZ24: 3 x 40 | HA24: =HA19*3 -> 3769.911184 | HB24: 3 x 40 | HE24: =HA12 -> 50.26548246 | HF24: =HB12 -> 8
H25: Axial Load 3 (Imposed) | S25: 0 | U25: kN | BK25: 93 | BL25: 14.508 | BM25: 174.096 | BN25: 5.58 | BO25: 4.836 | BP25: 25.0959384 | BQ25: 5.851977143 | BR25: 14.508 | BS25: -8.656022857 | BT25: 14.508 | BU25: 51.64976261 | BV25: 70.58836504 | BW25: -148.3502374 | BX25: 0.93 | BY25: 367.4127312 | BZ25: 0.93 | CA25: 5.58 | CB25: 1.158755354 | CD25: 93 | CE25: 5.58 | CF25: 1.286021505 | FA25: 15 | FB25: 15 | GD25: Required Pad Size | GE25: =((GE9*GE13+GE10*GE14)+GE23)/GE2 -> 5.177828571 | GF25: m2 | GS25: Depth to top of footing | GT25: =Q61 -> 0.5 | GU25: m | GZ25: 4 x 40 | HA25: =HA22*2 -> 5026.548246 | HB25: 4 x 40 | HE25: =HA11 -> 28.27433388 | HF25: =HB11 -> 6
BK26: 92 | BL26: 14.352 | BM26: 172.224 | BN26: 5.52 | BO26: 4.784 | BP26: 24.2950656 | BQ26: 5.84128 | BR26: 14.352 | BS26: -8.51072 | BT26: 14.352 | BU26: 52.5684025 | BV26: 71.22519509 | BW26: -147.4315975 | BX26: 0.92 | BY26: 365.3711652 | BZ26: 0.92 | CA26: 5.52 | CB26: 1.172998118 | CD26: 92 | CE26: 5.52 | CF26: 1.3 | EI26: rec2 | EL26: master | EN26: master2 | FA26: 16 | FB26: 16 | GD26: area chosen | GE26: =GE21*GE21 -> 6.76 | GF26: m2 | GS26: x | GT26: =Q62 -> 3 | GU26: m
H27: Moment 1 (Dead) | S27: 50 | U27: kN | BK27: 91 | BL27: 14.196 | BM27: 170.352 | BN27: 5.46 | BO27: 4.732 | BP27: 23.5114152 | BQ27: 5.830582857 | BR27: 14.196 | BS27: -8.365417143 | BT27: 14.196 | BU27: 53.51923615 | BV27: 71.87602141 | BW27: -146.4807638 | BX27: 0.91 | BY27: 363.3391446 | BZ27: 0.91 | CA27: 5.46 | CB27: 1.187590519 | CD27: 91 | CE27: 5.46 | CF27: 1.314285714 | EI27: 0 | EJ27: 0 | EL27: =IF(MAX($EI$27:$EJ$31)>2,EI27*(2/MAX($EI$27:$EJ$31)),EI27) -> 0 | EM27: =IF(MAX($EI$27:$EJ$31)>2,EJ27*(2/MAX($EI$27:$EJ$31)),EJ27) -> 0 | EN27: =IF(MAX($EL$27:$EL$31)=2,EL27,EL27+0.5*(2-MAX($EL$27:$EL$31))) -> 0 | EO27: =IF(MAX($EM$27:$EM$31)=2,EM27,EM27+0.5*(2-MAX($EM$27:$EM$31))) -> 0.1333333333 | FA27: 17 | FB27: 17 | FD27: =IF($FB28*FD$8<$GT$54,NA(),IF($FA25*FD$8>$GT$54,NA(),IF($FB27*FD$8>1.25*$GT$54,NA(),IF($FB27*FD$8<0.9*$GT$54,NA(),$FB27*FD$8)))) ->  | FE27: =IF($FB28*FE$8<$GT$54,NA(),IF($FA25*FE$8>$GT$54,NA(),IF($FB27*FE$8>1.25*$GT$54,NA(),IF($FB27*FE$8<0.9*$GT$54,NA(),$FB27*FE$8)))) ->  | FF27: =IF($FB28*FF$8<$GT$54,NA(),IF($FA25*FF$8>$GT$54,NA(),IF($FB27*FF$8>1.25*$GT$54,NA(),IF($FB27*FF$8<0.9*$GT$54,NA(),$FB27*FF$8)))) ->  | FG27: =IF($FB28*FG$8<$GT$54,NA(),IF($FA25*FG$8>$GT$54,NA(),IF($FB27*FG$8>1.25*$GT$54,NA(),IF($FB27*FG$8<0.9*$GT$54,NA(),$FB27*FG$8)))) ->  | FH27: =IF($FB28*FH$8<$GT$54,NA(),IF($FA25*FH$8>$GT$54,NA(),IF($FB27*FH$8>1.25*$GT$54,NA(),IF($FB27*FH$8<0.9*$GT$54,NA(),$FB27*FH$8)))) ->  | FI27: =IF($FB28*FI$8<$GT$54,NA(),IF($FA25*FI$8>$GT$54,NA(),IF($FB27*FI$8>1.25*$GT$54,NA(),IF($FB27*FI$8<0.9*$GT$54,NA(),$FB27*FI$8)))) ->  | FJ27: =IF($FB28*FJ$8<$GT$54,NA(),IF($FA25*FJ$8>$GT$54,NA(),IF($FB27*FJ$8>1.25*$GT$54,NA(),IF($FB27*FJ$8<0.9*$GT$54,NA(),$FB27*FJ$8)))) ->  | FK27: =IF($FB28*FK$8<$GT$54,NA(),IF($FA25*FK$8>$GT$54,NA(),IF($FB27*FK$8>1.25*$GT$54,NA(),IF($FB27*FK$8<0.9*$GT$54,NA(),$FB27*FK$8)))) ->  | FL27: =IF($FB28*FL$8<$GT$54,NA(),IF($FA25*FL$8>$GT$54,NA(),IF($FB27*FL$8>1.25*$GT$54,NA(),IF($FB27*FL$8<0.9*$GT$54,NA(),$FB27*FL$8)))) ->  | FM27: =IF($FB28*FM$8<$GT$54,NA(),IF($FA25*FM$8>$GT$54,NA(),IF($FB27*FM$8>1.25*$GT$54,NA(),IF($FB27*FM$8<0.9*$GT$54,NA(),$FB27*FM$8)))) ->  | FN27: =IF($FB28*FN$8<$GT$54,NA(),IF($FA25*FN$8>$GT$54,NA(),IF($FB27*FN$8>1.25*$GT$54,NA(),IF($FB27*FN$8<0.9*$GT$54,NA(),$FB27*FN$8)))) ->  | FO27: =IF($FB28*FO$8<$GT$54,NA(),IF($FA25*FO$8>$GT$54,NA(),IF($FB27*FO$8>1.25*$GT$54,NA(),IF($FB27*FO$8<0.9*$GT$54,NA(),$FB27*FO$8)))) ->  | FP27: =IF($FB28*FP$8<$GT$54,NA(),IF($FA25*FP$8>$GT$54,NA(),IF($FB27*FP$8>1.25*$GT$54,NA(),IF($FB27*FP$8<0.9*$GT$54,NA(),$FB27*FP$8)))) ->  | FQ27: =IF($FB28*FQ$8<$GT$54,NA(),IF($FA25*FQ$8>$GT$54,NA(),IF($FB27*FQ$8>1.25*$GT$54,NA(),IF($FB27*FQ$8<0.9*$GT$54,NA(),$FB27*FQ$8)))) ->  | GD27: =IF(GE26>GE25,"Acceptable","Pad too small") -> Acceptable | GS27: y | GT27: =Q63 -> 2.6 | GU27: m
H28: Moment 2 (Dead) | S28: 20 | U28: kN | BK28: 90 | BL28: 14.04 | BM28: 168.48 | BN28: 5.4 | BO28: 4.68 | BP28: 22.7448 | BQ28: 5.819885714 | BR28: 14.04 | BS28: -8.220114286 | BT28: 14.04 | BU28: 54.50378108 | BV28: 72.54131054 | BW28: -145.4962189 | BX28: 0.9 | BY28: 361.3166693 | BZ28: 0.9 | CA28: 5.4 | CB28: 1.202545445 | CD28: 90 | CE28: 5.4 | CF28: 1.328888889 | EI28: =Q62 -> 3 | EJ28: 0 | EL28: =IF(MAX($EI$27:$EJ$31)>2,EI28*(2/MAX($EI$27:$EJ$31)),EI28) -> 2 | EM28: 0 | EN28: =IF(MAX($EL$27:$EL$31)=2,EL28,EL28+0.5*(2-MAX($EL$27:$EL$31))) -> 2 | EO28: =IF(MAX($EM$27:$EM$31)=2,EM28,EM28+0.5*(2-MAX($EM$27:$EM$31))) -> 0.1333333333 | FA28: 18 | FB28: 18 | GS28: z | GT28: =Q64 -> 0.5 | GU28: m
H29: Moment 3 (Dead) | S29: 0 | U29: kN | BK29: 89 | BL29: 13.884 | BM29: 166.608 | BN29: 5.34 | BO29: 4.628 | BP29: 21.9950328 | BQ29: 5.809188571 | BR29: 13.884 | BS29: -8.074811429 | BT29: 13.884 | BU29: 55.52364503 | BV29: 73.22154999 | BW29: -144.476355 | BX29: 0.89 | BY29: 359.3037394 | BZ29: 0.89 | CA29: 5.34 | CB29: 1.217876419 | CD29: 89 | CE29: 5.34 | CF29: 1.343820225 | EI29: =EI28 -> 3 | EJ29: =Q63 -> 2.6 | EL29: 2 | EM29: 1.733333333 | EN29: =IF(MAX($EL$27:$EL$31)=2,EL29,EL29+0.5*(2-MAX($EL$27:$EL$31))) -> 2 | EO29: =IF(MAX($EM$27:$EM$31)=2,EM29,EM29+0.5*(2-MAX($EM$27:$EM$31))) -> 1.866666667 | FA29: 19 | FB29: 19 | GD29: Depth and bending reinforcement design | GS29: self weight | GT29: =GT28*GT27*GT26*24 -> 93.6 | GU29: kN
H30: Moment 1 (Imposed) | S30: 20 | U30: kN | BK30: 88 | BL30: 13.728 | BM30: 164.736 | BN30: 5.28 | BO30: 4.576 | BP30: 21.2619264 | BQ30: 5.798491429 | BR30: 13.728 | BS30: -7.929508571 | BT30: 13.728 | BU30: 56.58053246 | BV30: 73.91724942 | BW30: -143.4194675 | BX30: 0.88 | BY30: 357.3003548 | BZ30: 0.88 | CA30: 5.28 | CB30: 1.233597641 | CD30: 88 | CE30: 5.28 | CF30: 1.359090909 | EI30: 0 | EJ30: =EJ29 -> 2.6 | EL30: 0 | EM30: 1.733333333 | EN30: =IF(MAX($EL$27:$EL$31)=2,EL30,EL30+0.5*(2-MAX($EL$27:$EL$31))) -> 0 | EO30: =IF(MAX($EM$27:$EM$31)=2,EM30,EM30+0.5*(2-MAX($EM$27:$EM$31))) -> 1.866666667 | FA30: 20 | FB30: 20 | GD30: Design Pressure | GE30: =(GE18+GE23)/GE26 -> 174.7218935 | GF30: kN/m2 | GS30: Area Required | GT30: =SUM(GT12,GT13,GT29)/GT2 -> 5.392
H31: Moment 2 (Imposed) | S31: 10 | U31: kN | BK31: 87 | BL31: 13.572 | BM31: 162.864 | BN31: 5.22 | BO31: 4.524 | BP31: 20.5452936 | BQ31: 5.787794286 | BR31: 13.572 | BS31: -7.784205714 | BT31: 13.572 | BU31: 57.67625162 | BV31: 74.62894194 | BW31: -142.3237484 | BX31: 0.87 | BY31: 355.3065156 | BZ31: 0.87 | CA31: 5.22 | CB31: 1.249724025 | CD31: 87 | CE31: 5.22 | CF31: 1.374712644 | EI31: =EI27 -> 0 | EJ31: =EJ27 -> 0 | EL31: 0 | EM31: 0 | EN31: =IF(MAX($EL$27:$EL$31)=2,EL31,EL31+0.5*(2-MAX($EL$27:$EL$31))) -> 0 | EO31: =IF(MAX($EM$27:$EM$31)=2,EM31,EM31+0.5*(2-MAX($EM$27:$EM$31))) -> 0.1333333333 | FA31: 21 | FB31: 21 | FF31: 2375.044046 | GD31: Moment At Column Face | GE31: =GE30*GE21*((GE21-(GE3/1000))/2)^2/2 -> 274.8375385 | GF31: kNm | GS31: area chosen | GT31: =GT27*GT26 -> 7.8 | GU31: m2
H32: Moment 3 (Imposed) | S32: 0 | U32: kN | BK32: 86 | BL32: 13.416 | BM32: 160.992 | BN32: 5.16 | BO32: 4.472 | BP32: 19.8449472 | BQ32: 5.777097143 | BR32: 13.416 | BS32: -7.638902857 | BT32: 13.416 | BU32: 58.81272218 | BV32: 75.35718545 | BW32: -141.1872778 | BX32: 0.86 | BY32: 353.3222217 | BZ32: 0.86 | CA32: 5.16 | CB32: 1.26627125 | CD32: 86 | CE32: 5.16 | CF32: 1.390697674 | FA32: 22 | FB32: 22 | FF32: 2488.141382 | GS32: =IF(GT31>GT30,"Acceptable","Pad too small") -> Acceptable
BK33: 85 | BL33: 13.26 | BM33: 159.12 | BN33: 5.1 | BO33: 4.42 | BP33: 19.1607 | BQ33: 5.7664 | BR33: 13.26 | BS33: -7.4936 | BT33: 13.26 | BU33: 59.99198359 | BV33: 76.1025641 | BW33: -140.0080164 | BX33: 0.85 | BY33: 351.3474732 | BZ33: 0.85 | CA33: 5.1 | CB33: 1.283255803 | CD33: 85 | CE33: 5.1 | CF33: 1.407058824 | EI33: rec2 | EL33: master | EN33: master2 | FA33: 23 | FB33: 23 | FF33: 2601.238717 | GD33: Cover | GE33: =S114 -> 40 | GF33: mm | GS33: Section modulus Z | GT33: =MIN(GT26:GT27)*MAX(GT26:GT27)^2/6 -> 3.9
H34: Horizontal Load 1 (Dead) | S34: 20 | U34: kN | BK34: 84 | BL34: 13.104 | BM34: 157.248 | BN34: 5.04 | BO34: 4.368 | BP34: 18.4923648 | BQ34: 5.755702857 | BR34: 13.104 | BS34: -7.348297143 | BT34: 13.104 | BU34: 61.21620408 | BV34: 76.86568987 | BW34: -138.7837959 | BX34: 0.84 | BY34: 349.3822701 | BZ34: 0.84 | CA34: 5.04 | CB34: 1.300695039 | CD34: 84 | CE34: 5.04 | CF34: 1.423809524 | EI34: 0 | EJ34: 0 | EL34: =IF(MAX($EI$27:$EJ$31)>2,EI34*(2/MAX($EI$27:$EJ$31)),EI34) -> 0 | EM34: 0 | EN34: =IF(MAX($EL$27:$EM$31)=2,EL34+1-0.5*$EM$36,EL34+0.5*(2-MAX($EL$34:$EM$38))) -> 0.8666666667 | EO34: =IF(MAX($EL$27:$EM$31)=2,EM34+1-0.5*$EM$36,EM34+0.5*(2-MAX($EL$34:$EM$38))) -> 0.8666666667 | FA34: 24 | FB34: 24 | GD34: Assumed Bar Dia | GE34: 40 | GF34: mm | GS34: Cover | GT34: =S114 -> 40 | GU34: mm
H35: Horizontal Load 2 (Dead) | S35: 0 | U35: kN | BK35: 83 | BL35: 12.948 | BM35: 155.376 | BN35: 4.98 | BO35: 4.316 | BP35: 17.8397544 | BQ35: 5.745005714 | BR35: 12.948 | BS35: -7.202994286 | BT35: 12.948 | BU35: 62.48769057 | BV35: 77.6472042 | BW35: -137.5123094 | BX35: 0.83 | BY35: 347.4266123 | BZ35: 0.83 | CA35: 4.98 | CB35: 1.31860723 | CD35: 83 | CE35: 4.98 | CF35: 1.440963855 | EI35: =Q59/1000 -> 0.4 | EJ35: 0 | EL35: 0.2666666667 | EM35: 0 | EN35: =IF(MAX($EL$27:$EM$31)=2,EL35+1-0.5*$EM$36,EL35+0.5*(2-MAX($EL$34:$EM$38))) -> 1.133333333 | EO35: 0.8666666667 | FA35: 25 | FB35: 25 | GD35: Average Effective depth | GE35: =GE22-GE33/1000-GE34/1000 -> 0.42 | GF35: m
H36: Horizontal Load 3 (Dead) | S36: 0 | U36: kN | BK36: 82 | BL36: 12.792 | BM36: 153.504 | BN36: 4.92 | BO36: 4.264 | BP36: 17.2026816 | BQ36: 5.734308571 | BR36: 12.792 | BS36: -7.057691429 | BT36: 12.792 | BU36: 63.80889938 | BV36: 78.44777986 | BW36: -136.1911006 | BX36: 0.82 | BY36: 345.4804999 | BZ36: 0.82 | CA36: 4.92 | CB36: 1.337011634 | CD36: 82 | CE36: 4.92 | CF36: 1.458536585 | EI36: =EI35 -> 0.4 | EJ36: =EI36 -> 0.4 | EL36: 0.2666666667 | EM36: 0.2666666667 | EN36: 1.133333333 | EO36: 1.133333333 | FA36: 26 | FB36: 26 | GD36: Reinforcement Required | GE36: =((GE31*1000000)/(0.87*GE5*0.95*GE35*1000)) -> 1583.484795 | GF36: mm2 | GS36: Overturning
H37: Horizontal Load 1 (Imposed) | S37: 15 | U37: kN | BK37: 81 | BL37: 12.636 | BM37: 151.632 | BN37: 4.86 | BO37: 4.212 | BP37: 16.5809592 | BQ37: 5.723611429 | BR37: 12.636 | BS37: -6.912388571 | BT37: 12.636 | BU37: 65.18244797 | BV37: 79.26812282 | BW37: -134.817552 | BX37: 0.81 | BY37: 343.5439329 | BZ37: 0.81 | CA37: 4.86 | CB37: 1.355928554 | CD37: 81 | CE37: 4.86 | CF37: 1.47654321 | EI37: 0 | EJ37: =EJ36 -> 0.4 | EL37: 0 | EM37: 0.2666666667 | EN37: 0.8666666667 | EO37: 1.133333333 | FA37: 27 | FB37: 27 | GD37: Reinforcement Dia | GE37: =S119 -> 16 | GF37: mm | GS37: max earth pressure | GT37: =((GT20+GT29)/(GT27*GT26))+((GT21+GT22*GT28)/GT33) -> 215.0769231 | GU37: kN/m2 | GV37: factored
H38: Horizontal Load 2 (Imposed) | S38: 0 | U38: kN | BK38: 80 | BL38: 12.48 | BM38: 149.76 | BN38: 4.8 | BO38: 4.16 | BP38: 15.9744 | BQ38: 5.712914286 | BR38: 12.48 | BS38: -6.767085714 | BT38: 12.48 | BU38: 66.6111278 | BV38: 80.10897436 | BW38: -133.3888722 | BX38: 0.8 | BY38: 341.6169112 | BZ38: 0.8 | CA38: 4.8 | CB38: 1.375379415 | CD38: 80 | CE38: 4.8 | CF38: 1.495 | EI38: =EI34 -> 0 | EJ38: =EJ34 -> 0 | EL38: 0 | EM38: 0 | EN38: 0.8666666667 | EO38: 0.8666666667 | FA38: 28 | FB38: 28 | GD38: Spacing | GE38: =ROUNDDOWN((GE21-GE33*0.001*2)*1000/((ROUNDUP(GE36/(VLOOKUP(GE37,GK8:GL22,2,FALSE)),0))-1),0.01) -> 360 | GF38: mm | GS38: =IF(GT2>GT37,"Acceptable","Pad too small") -> Pad too small | GT38: =(GT12+GT13+GT29+GT25*GT26*GT27*24)/(GT26*GT27)+(GT14+GT15+(GT28*(GT16+GT17)))/GT33 -> 163.1025641 | GV38: unfactored
H39: Horizontal Load 3 (Imposed) | S39: 0 | U39: kN | BK39: 79 | BL39: 12.324 | BM39: 147.888 | BN39: 4.74 | BO39: 4.108 | BP39: 15.3828168 | BQ39: 5.702217143 | BR39: 12.324 | BS39: -6.621782857 | BT39: 12.324 | BU39: 68.0979183 | BV39: 80.97111327 | BW39: -131.9020817 | BX39: 0.79 | BY39: 339.6994349 | BZ39: 0.79 | CA39: 4.74 | CB39: 1.39538684 | CD39: 79 | CE39: 4.74 | CF39: 1.513924051 | FA39: 29 | FB39: 29 | GD39: Area Chosen | GE39: =(ROUNDUP(GE36/(VLOOKUP(GE37,GK8:GL22,2,FALSE)),0))*VLOOKUP(GE37,GK8:GL22,2,FALSE) -> 1608.495439 | GF39: mm2 | GS39: eccentricity | GT39: =((GT14+GT15)+(GT16+GT17)*GT28)/(GT12+GT13+GT29+GT25*GT26*GT27*24) -> 0.1132857694 | GU39: l/6 | GV39: =MAX(GT26:GT27)/6 -> 0.5
BK40: 78 | BL40: 12.168 | BM40: 146.016 | BN40: 4.68 | BO40: 4.056 | BP40: 14.8060224 | BQ40: 5.69152 | BR40: 12.168 | BS40: -6.47648 | BT40: 12.168 | BU40: 69.64600221 | BV40: 81.85535832 | BW40: -130.3539978 | BX40: 0.78 | BY40: 337.7915039 | BZ40: 0.78 | CA40: 4.68 | CB40: 1.415974735 | CD40: 78 | CE40: 4.68 | CF40: 1.533333333 | CH40: =Q62 -> 3 | CI40: 0 | EI40: 1 | EJ40: -1 | EL40: -1 | EM40: 1 | FA40: 30 | FB40: 30 | FE40: 2356.19449 | GS40: Sliding
BK41: 77 | BL41: 12.012 | BM41: 144.144 | BN41: 4.62 | BO41: 4.004 | BP41: 14.2438296 | BQ41: 5.680822857 | BR41: 12.012 | BS41: -6.331177143 | BT41: 12.012 | BU41: 71.25878248 | BV41: 82.76257076 | BW41: -128.7412175 | BX41: 0.77 | BY41: 335.8931183 | BZ41: 0.77 | CA41: 4.62 | CB41: 1.437168376 | CD41: 77 | CE41: 4.62 | CF41: 1.553246753 | CH41: =CH40 -> 3 | CI41: =(CH41*($GT$12+$GT$13)+6*($GT$14+$GT$15)+6*($GT$16+$GT$17)*$Q$64)/(CH41^2*($S$9-24*$Q$64-24*$Q$61)) -> 2.395143488 | EI41: 1 | EJ41: 3 | EL41: 3 | EM41: 1 | FA41: 31 | FB41: 31 | FE41: 2434.734307 | GD41: Vertical Shear reinforcement | GS41: passive resistance | GT41: =IF(GT7=0,"Not Applicable",0.5*GT28*MIN(GT27)*(((1+SIN(RADIANS(GT7)))/(1-SIN(RADIANS(GT7)))*GT8*GT25)+((1+SIN(RADIANS(GT7)))/(1-SIN(RADIANS(GT7)))*(GT25+GT28)*GT8))) -> 35.7950981 | GU41: kN
BK42: 76 | BL42: 11.856 | BM42: 142.272 | BN42: 4.56 | BO42: 3.952 | BP42: 13.6960512 | BQ42: 5.670125714 | BR42: 11.856 | BS42: -6.185874286 | BT42: 11.856 | BU42: 72.93990069 | BV42: 83.69365722 | BW42: -127.0600993 | BX42: 0.76 | BY42: 334.004278 | BZ42: 0.76 | CA42: 4.56 | CB42: 1.458994515 | CD42: 76 | CE42: 4.56 | CF42: 1.573684211 | CH42: 0 | CI42: =CI41 -> 2.395143488 | FA42: 32 | FB42: 32 | FE42: 2513.274123 | GD42: Design Shear | GE42: =GE30*GE21*(((GE21-GE3*0.001)/2)-GE35) -> 308.9083077 | GF42: kN | GS42: frictional resistance | GT42: =TAN(RADIANS(GT7))*(GT12+GT29) -> 252.4497545 | GU42: kN | HD42: kp | HE42: =(1+SIN(RADIANS(GT7)))/(1-SIN(RADIANS(GT7))) -> 2.039606729
BK43: 75 | BL43: 11.7 | BM43: 140.4 | BN43: 4.5 | BO43: 3.9 | BP43: 13.1625 | BQ43: 5.659428571 | BR43: 11.7 | BS43: -6.040571429 | BT43: 11.7 | BU43: 74.69325736 | BV43: 84.64957265 | BW43: -125.3067426 | BX43: 0.75 | BY43: 332.1249831 | BZ43: 0.75 | CA43: 4.5 | CB43: 1.481481481 | CD43: 75 | CE43: 4.5 | CF43: 1.594666667 | EH43: =Q62&"m" -> 3m | EI43: 2.25 | EJ43: =MIN(EO27:EO31) -> 0.1333333333 | EL43: =MIN(EN27:EN31) -> 0 | EM43: 2.25 | EN43: =Q59&"mm" -> 400mm | FA43: 33 | FB43: 33 | GD43: Shear Resistance | GE43: =((0.18/GE6)*(MIN(1+SQRT(200/GE35*1000),2))*(100*(MIN(SQRT((100*GE39/(1000*GE35*1000))*(100*GE39/(1000*GE35*1000))),0.02))*GE4)^(1/3))*GE21*GE35*1000 -> 1129.268487 | GF43: kN | GS43: cohesive soils | GT43: =IF(GT7=0,2*GT9*MIN(GT27)*GT28+(0.5*MIN(GT27)*GT28*((GT7*GT25)+(GT8*(GT28+GT25)))),"Not Applicable") -> Not Applicable | GU43: kN | HD43: p1 at top | HE43: =((1+SIN(RADIANS(GT7)))/(1-SIN(RADIANS(GT7)))*GT8*GT25) -> 18.35646056
BK44: 74 | BL44: 11.544 | BM44: 138.528 | BN44: 4.44 | BO44: 3.848 | BP44: 12.6429888 | BQ44: 5.648731429 | BR44: 11.544 | BS44: -5.895268571 | BT44: 11.544 | BU44: 76.5230343 | BV44: 85.63132363 | BW44: -123.4769657 | BX44: 0.74 | BY44: 330.2552336 | BZ44: 0.74 | CA44: 4.44 | CB44: 1.504659304 | CD44: 74 | CE44: 4.44 | CF44: 1.616216216 | CH44: 0 | CI44: =Q63 -> 2.6 | EH44: =Q63&"m" -> 2.6m | EI44: =EI43 -> 2.25 | EJ44: =AVERAGE(EJ43,EJ45) -> 1 | EL44: =AVERAGE(EL43,EL45) -> 1 | EM44: =EM43 -> 2.25 | FA44: 34 | FB44: 34 | GD44: =IF(GE43>GE42,"No Shear Reinforcement Required","Shear Reinforcement Required") -> No Shear Reinforcement Required | GS44: =IF(SUM(GT41:GT43)>GT22,"Acceptable","Increase Pad Width and/or Depth") -> Acceptable | GT44: =(IF($GT$7=0,0,0.5*$GT$28*MIN($GT$27)*(((1+SIN(RADIANS($GT$7)))/(1-SIN(RADIANS($GT$7)))*$GT$8*$GT$25)+((1+SIN(RADIANS($GT$7)))/(1-SIN(RADIANS($GT$7)))*($GT$25+$GT$28)*$GT$8)))+(TAN(RADIANS($GT$7))*($GT$12+$GT$29)))+(IF($GT$7=0,2*$GT$9*MIN($GT$27)*$GT$28+(0.5*MIN($GT$27)*$GT$28*(($GT$7*$GT$25)+($GT$8*($GT$28+$GT$25)))),0)) -> 288.2448526 | HD44: p2 at bottom | HE44: =((1+SIN(RADIANS(GT7)))/(1-SIN(RADIANS(GT7)))*(GT25+GT28)*GT8) -> 36.71292112
BK45: 73 | BL45: 11.388 | BM45: 136.656 | BN45: 4.38 | BO45: 3.796 | BP45: 12.1373304 | BQ45: 5.638034286 | BR45: 11.388 | BS45: -5.749965714 | BT45: 11.388 | BU45: 78.43371923 | BV45: 86.6399719 | BW45: -121.5662808 | BX45: 0.73 | BY45: 328.3950294 | BZ45: 0.73 | CA45: 4.38 | CB45: 1.528559836 | CD45: 73 | CE45: 4.38 | CF45: 1.638356164 | CH45: =CD16/CI45 -> 2.76 | CI45: =Q63 -> 2.6 | EI45: =EI44 -> 2.25 | EJ45: =MAX(EO27:EO31) -> 1.866666667 | EL45: =MAX(EN27:EN31) -> 2 | EM45: =EM44 -> 2.25 | FA45: 35 | FB45: 35 | HD45: p3 | HE45: =(GT7*GT25) -> 10
BK46: 72 | BL46: 11.232 | BM46: 134.784 | BN46: 4.32 | BO46: 3.744 | BP46: 11.6453376 | BQ46: 5.627337143 | BR46: 11.232 | BS46: -5.604662857 | BT46: 11.232 | BU46: 80.43013293 | BV46: 87.67663818 | BW46: -119.5698671 | BX46: 0.72 | BY46: 326.5443706 | BZ46: 0.72 | CA46: 4.32 | CB46: 1.553216894 | CD46: 72 | CE46: 4.32 | CF46: 1.661111111 | CH46: =CH45 -> 2.76 | CI46: 0 | FA46: 36 | FB46: 36 | GD46: Punching Shear Check | GS46: bending reinforcement design | HD46: p4 | HE46: =(GT8*(GT28+GT25)) -> 18
BK47: 71 | BL47: 11.076 | BM47: 132.912 | BN47: 4.26 | BO47: 3.692 | BP47: 11.1668232 | BQ47: 5.61664 | BR47: 11.076 | BS47: -5.45936 | BT47: 11.076 | BU47: 82.51745925 | BV47: 88.74250632 | BW47: -117.4825407 | BX47: 0.71 | BY47: 324.7032571 | BZ47: 0.71 | CA47: 4.26 | CB47: 1.578666414 | CD47: 71 | CE47: 4.26 | CF47: 1.684507042 | FA47: 37 | FB47: 37 | GD47: perimeter at 2d | GE47: =4*GE3+4*PI()*GE35*1000 -> 6877.875658 | GF47: mm | GS47: Reinforcement X
BK48: 70 | BL48: 10.92 | BM48: 131.04 | BN48: 4.2 | BO48: 3.64 | BP48: 10.7016 | BQ48: 5.605942857 | BR48: 10.92 | BS48: -5.314057143 | BT48: 10.92 | BU48: 84.70127831 | BV48: 89.83882784 | BW48: -115.2987217 | BX48: 0.7 | BY48: 322.871689 | BZ48: 0.7 | CA48: 4.2 | CB48: 1.604946614 | CD48: 70 | CE48: 4.2 | CF48: 1.708571429 | EM48: =EM49 -> 7.176 | EN48: 0 | FA48: 38 | FB48: 38 | GD48: Vrdc | GE48: =((0.18/GE6)*(MIN(1+SQRT(200/GE35*1000),2))*(100*(MIN(SQRT((100*GE39/(1000*GE35*1000))*(100*GE39/(1000*GE35*1000))),0.02))*GE4)^(1/3))*GE47*GE35 -> 2987.295477 | GF48: N/mm2 | GS48: maximum earth pressure | GT48: =(GT20/(GT26*GT27))+((GT21+GT28*GT22)/GT33) -> 203.0769231 | GU48: kN/m2 | HD48: =((GT26-(GT3*0.001))/2) -> 1.3
BK49: 69 | BL49: 10.764 | BM49: 129.168 | BN49: 4.14 | BO49: 3.588 | BP49: 10.2494808 | BQ49: 5.595245714 | BR49: 10.764 | BS49: -5.168754286 | BT49: 10.764 | BU49: 86.98760327 | BV49: 90.96692679 | BW49: -113.0123967 | BX49: 0.69 | BY49: 321.0496663 | BZ49: 0.69 | CA49: 4.14 | CB49: 1.632098178 | CD49: 69 | CE49: 4.14 | CF49: 1.733333333 | EL49: =MATCH(0,BW18:BW117,1) -> 55 | EM49: =INDEX(BT18:BT117,EL49,1) -> 7.176 | EN49: =VLOOKUP(EM49,BL18:CE117,10,FALSE) -> 193.6191021 | FA49: 39 | FB49: 39 | GD49: =IF(GE48>GE18+GE23,"No Punching Shear Reinforcement Required","Punching Shear Reinforcement Required") -> No Punching Shear Reinforcement Required | GS49: minimum earth pressure | GT49: =(GT20/(GT26*GT27))-((GT21+GT28*GT22)/GT33) -> 114.8717949 | GU49: kN/m2 | HD49: =((GT27-(GT4*0.001))/2) -> 1.1
BK50: 68 | BL50: =$Q$62*$Q$63*(2*BK50%) -> 10.608 | BM50: =$Q$64*BL50*24 -> 127.296 | BN50: =$Q$62*(2*BK50%) -> 4.08 | BO50: =$Q$63*(2*BK50%) -> 3.536 | BP50: 9.8102784 | BQ50: =($GT$12+$GT$13+BM50)/$GT$2 -> 5.584548571 | BR50: 10.608 | BS50: =BQ50-BR50 -> -5.023451429 | BT50: =BL50 -> 10.608 | BU50: 89.38292116 | BV50: 92.12820513 | BW50: -110.6170788 | BX50: =$Q$64*(2*BK50%) -> 0.68 | BY50: 319.2371889 | BZ50: 0.68 | CA50: =$Q$62*(2*BK50%) -> 4.08 | CB50: 1.660164455 | CD50: 68 | CE50: =$Q$62*2*CD50% -> 4.08 | CF50: 1.758823529 | FA50: 40 | GS50: pressure at face of column | GT50: =GT49+(GT48-GT49)*(GT26-HD48)/GT26 -> 164.8547009 | GU50: kN/m2 | GV50: diagram????
BK51: 67 | BL51: 10.452 | BM51: 125.424 | BN51: 4.02 | BO51: 3.484 | BP51: 9.3838056 | BQ51: 5.573851429 | BR51: 10.452 | BS51: -4.878148571 | BT51: 10.452 | BU51: 91.89423822 | BV51: 93.32414849 | BW51: -108.1057618 | BX51: 0.67 | BY51: 317.4342569 | BZ51: 0.67 | CA51: 4.02 | CB51: 1.689191681 | CD51: 67 | CE51: 4.02 | CF51: 1.785074627 | EM51: =EM49&"m²" -> 7.176m² | FA51: 41 | GS51: Moment At Column Face | GT51: =(GT50*GT27*HD48^2/2)+(0.5*(GT48-GT50)*GT27*HD48*(2/3)*HD48) -> 418.1685926 | GU51: kNm
BK52: 66 | BL52: 10.296 | BM52: 123.552 | BN52: 3.96 | BO52: 3.432 | BP52: 8.9698752 | BQ52: 5.563154286 | BR52: 10.296 | BS52: -4.732845714 | BT52: 10.296 | BU52: 94.52913039 | BV52: 94.55633256 | BW52: -105.4708696 | BX52: 0.66 | BY52: 315.6408702 | BZ52: 0.66 | CA52: 3.96 | CB52: 1.719229218 | CD52: 66 | CE52: 3.96 | CF52: 1.812121212 | EL52: Area Required | FA52: 42 | GS52: Assumed Bar Dia | GT52: 40 | GU52: mm
B53: Your Logo / Company Details Here | G53: Project: | AF53: By: | BK53: 65 | BL53: 10.14 | BM53: 121.68 | BN53: 3.9 | BO53: 3.38 | BP53: 8.5683 | BQ53: 5.552457143 | BR53: 10.14 | BS53: -4.587542857 | BT53: 10.14 | BU53: 97.29579963 | BV53: 95.82642998 | BW53: -102.7042004 | BX53: 0.65 | BY53: 313.8570289 | BZ53: 0.65 | CA53: 3.9 | CB53: 1.75032982 | CD53: 65 | CE53: 3.9 | CF53: 1.84 | EL53: Area Provided | FA53: 43 | GS53: Average Effective depth | GT53: =GT28-GT34/1000-GT52/1000 -> 0.42 | GU53: m
G54: Calculation: | M54: =IF(M3="","",M3) -> Single Pad Foundation Design (BS) - Complex | BK54: 64 | BL54: 9.984 | BM54: 119.808 | BN54: 3.84 | BO54: 3.328 | BP54: 8.1788928 | BQ54: 5.54176 | BR54: 9.984 | BS54: -4.44224 | BT54: 9.984 | BU54: 100.2031367 | BV54: 97.13621795 | BW54: -99.79686326 | BX54: 0.64 | BY54: 312.082733 | BZ54: 0.64 | CA54: 3.84 | CB54: 1.782549928 | CD54: 64 | CE54: 3.84 | CF54: 1.86875 | FA54: 44 | GS54: Reinforcement Required | GT54: =((GT51*1000000)/((GT6*0.95*GT53*1000)/S113)) -> 2410.495647 | GU54: mm2
AF55: Approved: | BK55: 63 | BL55: 9.828 | BM55: 117.936 | BN55: 3.78 | BO55: 3.276 | BP55: 7.8014664 | BQ55: 5.531062857 | BR55: 9.828 | BS55: -4.296937143 | BT55: 9.828 | BU55: 103.2607917 | BV55: 98.48758649 | BW55: -96.73920831 | BX55: 0.63 | BY55: 310.3179824 | BZ55: 0.63 | CA55: 3.78 | CB55: 1.815949992 | CD55: 63 | CE55: 3.78 | CF55: 1.898412698 | FA55: 45 | GS55: Reinforcement Dia | GU55: mm
G56: Sheet Number: | M56: 2 | T56: Date: | BK56: 62 | BL56: 9.672 | BM56: 116.064 | BN56: 3.72 | BO56: 3.224 | BP56: 7.4358336 | BQ56: 5.520365714 | BR56: 9.672 | BS56: -4.151634286 | BT56: 9.672 | BU56: 106.4792525 | BV56: 99.88254756 | BW56: -93.52074753 | BX56: 0.62 | BY56: 308.5627772 | BZ56: 0.62 | CA56: 3.72 | CB56: 1.850594832 | CD56: 62 | CE56: 3.72 | CF56: 1.929032258 | EL56: Area Required | FA56: 46 | GS56: Spacing | GU56: mm
H57: Pad Dimensions | BK57: 61 | BL57: 9.516 | BM57: 114.192 | BN57: 3.66 | BO57: 3.172 | BP57: 7.0818072 | BQ57: 5.509668571 | BR57: 9.516 | BS57: -4.006331429 | BT57: 9.516 | BU57: 109.8699335 | BV57: 101.3232451 | BW57: -90.13006646 | BX57: 0.61 | BY57: 306.8171173 | BZ57: 0.61 | CA57: 3.66 | CB57: 1.886554031 | CD57: 61 | CE57: 3.66 | CF57: 1.960655738 | EL57: 0 | EM57: =GT54 -> 2410.495647 | FA57: 47 | GS57: Area Chosen | GT57: =S122 -> 2412.743158 | GU57: mm2
BK58: 60 | BL58: 9.36 | BM58: 112.32 | BN58: 3.6 | BO58: 3.12 | BP58: 6.7392 | BQ58: 5.498971429 | BR58: 9.36 | BS58: -3.861028571 | BT58: 9.36 | BU58: 113.4452754 | BV58: 102.8119658 | BW58: -86.5547246 | BX58: 0.6 | BY58: 305.0810028 | BZ58: 0.6 | CA58: 3.6 | CB58: 1.923902379 | CD58: 60 | CE58: 3.6 | CF58: 1.993333333 | EL58: =MAX(FB112:FB211) -> 39 | EM58: =EM57 -> 2410.495647 | FA58: 48
H59: Column Dimensions (X) | Q59: 400 | S59: mm | BK59: 59 | BL59: 9.204 | BM59: 110.448 | BN59: 3.54 | BO59: 3.068 | BP59: 6.4078248 | BQ59: 5.488274286 | BR59: 9.204 | BS59: -3.715725714 | BT59: 9.204 | BU59: 117.2188568 | BV59: 104.3511517 | BW59: -82.7811432 | BX59: 0.59 | BY59: 303.3544337 | BZ59: 0.59 | CA59: 3.54 | CB59: 1.962720362 | CD59: 59 | CE59: 3.54 | CF59: 2.027118644 | FA59: 49 | GS59: Reinforcement Y
H60: Column Dimensions (Y) | Q60: 400 | S60: mm | AF60: Eccentricity: | BK60: 58 | BL60: 9.048 | BM60: 108.576 | BN60: 3.48 | BO60: 3.016 | BP60: 6.0874944 | BQ60: 5.477577143 | BR60: 9.048 | BS60: -3.570422857 | BT60: 9.048 | BU60: 121.2055214 | BV60: 105.9434129 | BW60: -78.7944786 | BX60: 0.58 | BY60: 301.6374099 | BZ60: 0.58 | CA60: 3.48 | CB60: 2.003094707 | CD60: 58 | CE60: 3.48 | CF60: 2.062068966 | EL60: Area Required | FA60: 50 | GS60: Average pressure | GT60: =SUM(GT48:GT49)/2 -> 158.974359
H61: Depth to Top of Pad | Q61: 0.5 | S61: m | AF61: =IF(GV39>GT39,"Acceptable","Not All Pad in Bearing") -> Acceptable | BK61: 57 | BL61: 8.892 | BM61: 106.704 | BN61: 3.42 | BO61: 2.964 | BP61: 5.7780216 | BQ61: 5.46688 | BR61: 8.892 | BS61: -3.42512 | BT61: 8.892 | BU61: 125.4215213 | BV61: 107.591543 | BW61: -74.5784787 | BX61: 0.57 | BY61: 299.9299315 | BZ61: 0.57 | CA61: 3.42 | CB61: 2.045118994 | CD61: 57 | CE61: 3.42 | CF61: 2.098245614 | EL61: 0 | EM61: =GT63 -> 1662.423078 | FA61: 51 | GS61: Moment y | GT61: =GT60*GT26*HD49^2/2 -> 288.5384615 | GU61: kNm
H62: Pad Dimensions (X) | Q62: 3 | S62: m | BK62: 56 | BL62: 8.736 | BM62: 104.832 | BN62: 3.36 | BO62: 2.912 | BP62: 5.4792192 | BQ62: 5.456182857 | BR62: 8.736 | BS62: -3.279817143 | BT62: 8.736 | BU62: 129.8846796 | BV62: 109.2985348 | BW62: -70.11532037 | BX62: 0.56 | BY62: 298.2319984 | BZ62: 0.56 | CA62: 3.36 | CB62: 2.088894333 | CD62: 56 | CE62: 3.36 | CF62: 2.135714286 | EL62: =MAX(FB318:FB417) -> 45 | EM62: =EM61 -> 1662.423078 | FA62: 52 | GS62: Assumed Bar Dia | GT62: 40 | GU62: mm
H63: Pad Dimensions (Y) | Q63: 2.6 | S63: m | AF63: Size: | AV63: =MIN(BX18:BX117) -> 0.01 | AW63: =GT22 -> 52 | BK63: 55 | BL63: 8.58 | BM63: 102.96 | BN63: 3.3 | BO63: 2.86 | BP63: 5.1909 | BQ63: 5.445485714 | BR63: 8.58 | BS63: -3.134514286 | BT63: 8.58 | BU63: 134.6145755 | BV63: 111.0675991 | BW63: -65.38542449 | BX63: 0.55 | BY63: 296.5436107 | BZ63: 0.55 | CA63: 3.3 | CB63: 2.13453013 | CD63: 55 | CE63: 3.3 | CF63: 2.174545455 | FA63: 53 | GS63: Reinforcement Required | GT63: =((GT61*1000000)/(0.87*GT6*0.95*GT53*1000)) -> 1662.423078 | GU63: mm2
H64: Pad Dimensions (Z) | Q64: 0.5 | S64: m | AF64: =IF(GT2>GT38,"Acceptable","Pad too small") -> Acceptable | AV64: =MAX(BX19:BX118) -> 0.99 | AW64: =AW63 -> 52 | BK64: 54 | BL64: 8.424 | BM64: 101.088 | BN64: 3.24 | BO64: 2.808 | BP64: 4.9128768 | BQ64: 5.434788571 | BR64: 8.424 | BS64: -2.989211429 | BT64: 8.424 | BU64: 139.6327548 | BV64: 112.9021842 | BW64: -60.3672452 | BX64: 0.54 | BY64: 294.8647684 | BZ64: 0.54 | CA64: 3.24 | CB64: 2.182144944 | CD64: 54 | CE64: 3.24 | CF64: 2.214814815 | FA64: 54 | GS64: Reinforcement Dia | GU64: mm
BK65: 53 | BL65: 8.268 | BM65: 99.216 | BN65: 3.18 | BO65: 2.756 | BP65: 4.6449624 | BQ65: 5.424091429 | BR65: 8.268 | BS65: -2.843908571 | BT65: 8.268 | BU65: 144.9629708 | BV65: 114.805999 | BW65: -55.03702919 | BX65: 0.53 | BY65: 293.1954714 | BZ65: 0.53 | CA65: 3.18 | CB65: 2.231867452 | CD65: 53 | CE65: 3.18 | CF65: 2.256603774 | FA65: 55 | GS65: Spacing | GU65: mm
AV66: =IF(INDEX(BZ18:BZ117,MATCH(AW64,BY18:BY117,-1),1)=0.01,NA(),INDEX(BZ18:BZ117,MATCH(AW64,BY18:BY117,-1),1)) ->  | AW66: 0 | BK66: 52 | BL66: 8.112 | BM66: 97.344 | BN66: 3.12 | BO66: 2.704 | BP66: 4.3869696 | BQ66: 5.413394286 | BR66: 8.112 | BS66: -2.698605714 | BT66: 8.112 | BU66: 150.6314599 | BV66: 116.7830375 | BW66: -49.36854014 | BX66: 0.52 | BY66: 291.5357198 | BZ66: 0.52 | CA66: 3.12 | CB66: 2.283837533 | CD66: 52 | CE66: 3.12 | CF66: 2.3 | FA66: 56 | GS66: Area Chosen | GT66: =S167 -> 1696.460033 | GU66: mm2
AV67: =AV66 ->  | AW67: =AW64 -> 52 | BK67: 51 | BL67: 7.956 | BM67: 95.472 | BN67: 3.06 | BO67: 2.652 | BP67: 4.1387112 | BQ67: 5.402697143 | BR67: 7.956 | BS67: -2.553302857 | BT67: 7.956 | BU67: 156.6672578 | BV67: 118.8376068 | BW67: -43.33274223 | BX67: 0.51 | BY67: 289.8855135 | BZ67: 0.51 | CA67: 3.06 | CB67: 2.338207499 | CD67: 51 | CE67: 3.06 | CF67: 2.345098039 | FA67: 57
BK68: 50 | BL68: 7.8 | BM68: 93.6 | BN68: 3 | BO68: 2.6 | BP68: 3.9 | BQ68: 5.392 | BR68: 7.8 | BS68: -2.408 | BT68: 7.8 | BU68: 163.1025641 | BV68: 120.974359 | BW68: -36.8974359 | BX68: 0.5 | BY68: 288.2448526 | BZ68: 0.5 | CA68: 3 | CB68: 2.395143488 | CD68: 50 | CE68: 3 | CF68: 2.392 | FA68: 58 | GS68: Vertical Shear reinforcement X
AV69: =Q64 -> 0.5 | AW69: =GT44 -> 288.2448526 | BK69: 49 | BL69: 7.644 | BM69: 91.728 | BN69: 2.94 | BO69: 2.548 | BP69: 3.6706488 | BQ69: 5.381302857 | BR69: 7.644 | BS69: -2.262697143 | BT69: 7.644 | BU69: 169.9731627 | BV69: 123.1983255 | BW69: -30.02683733 | BX69: 0.49 | BY69: 286.613737 | BZ69: 0.49 | CA69: 2.94 | CB69: 2.454827045 | CD69: 49 | CE69: 2.94 | CF69: 2.440816327 | FA69: 59 | GS69: Pressure @d | GT69: =GT49+(GT48-GT49)*(GT26-HD48+GT3*0.001)/GT26 -> 176.6153846 | GU69: kN/m2
BK70: 48 | BL70: 7.488 | BM70: 89.856 | BN70: 2.88 | BO70: 2.496 | BP70: 3.4504704 | BQ70: 5.370605714 | BR70: 7.488 | BS70: -2.117394286 | BT70: 7.488 | BU70: 177.3189084 | BV70: 125.5149573 | BW70: -22.6810916 | BX70: 0.48 | BY70: 284.9921668 | BZ70: 0.48 | CA70: 2.88 | CB70: 2.517456923 | CD70: 48 | CE70: 2.88 | CF70: 2.491666667 | FA70: 60 | GS70: Shear Force | GT70: =0.5*(GT69+GT48)*GT27*(HD48-GT3*0.001) -> 444.24 | GU70: kN
BK71: 47 | BL71: 7.332 | BM71: 87.984 | BN71: 2.82 | BO71: 2.444 | BP71: 3.2392776 | BQ71: 5.359908571 | BR71: 7.332 | BS71: -1.972091429 | BT71: 7.332 | BU71: 185.1842927 | BV71: 127.9301691 | BW71: -14.8157073 | BX71: 0.47 | BY71: 283.380142 | BZ71: 0.47 | CA71: 2.82 | CB71: 2.583251139 | CD71: 47 | CE71: 2.82 | CF71: 2.544680851 | FA71: 61 | GS71: v | GT71: =GT70*1000/(GT27*1000000*GT53) -> 0.4068131868 | GU71: N/mm2
BK72: 46 | BL72: 7.176 | BM72: 86.112 | BN72: 2.76 | BO72: 2.392 | BP72: 3.0368832 | BQ72: 5.349211429 | BR72: 7.176 | BS72: -1.826788571 | BT72: 7.176 | BU72: 193.6191021 | BV72: 130.4503902 | BW72: -6.380897889 | BX72: 0.46 | BY72: 281.7776625 | BZ72: 0.46 | CA72: 2.76 | CB72: 2.65244933 | CD72: 46 | CE72: 2.76 | CF72: 2.6 | FA72: 62 | GS72: 100As/bd | GT72: =100*GT57/(GT27*1000*GT28*1000) -> 0.1855956275
BK73: 45 | BL73: 7.02 | BM73: 84.24 | BN73: 2.7 | BO73: 2.34 | BP73: 2.8431 | BQ73: 5.338514286 | BR73: 7.02 | BS73: -1.681485714 | BT73: 7.02 | BU73: 202.6791882 | BV73: 133.0826211 | BW73: 2.67918821 | BX73: 0.45 | BY73: 280.1847284 | BZ73: 0.45 | CA73: 2.7 | CB73: 2.725315455 | CD73: 45 | CE73: 2.7 | CF73: 2.657777778 | FA73: 63 | GS73: vc | GT73: =0.79*(GT72^(1/3))*(((400/(GT53*1000))^0.25)/1.25)*((GT5/25)^(1/3)) -> 0.4165325974 | GU73: N/mm2
BK74: 44 | BL74: 6.864 | BM74: 82.368 | BN74: 2.64 | BO74: 2.288 | BP74: 2.6577408 | BQ74: 5.327817143 | BR74: 6.864 | BS74: -1.536182857 | BT74: 6.864 | BU74: 212.4273705 | BV74: 135.8344988 | BW74: 12.42737049 | BX74: 0.44 | BY74: 278.6013397 | BZ74: 0.44 | CA74: 2.64 | CB74: 2.802140915 | CD74: 44 | CE74: 2.64 | CF74: 2.718181818 | FA74: 64 | GS74: =IF(GT73>GT71,"No Shear Reinforcement Required","Shear Reinforcement Required") -> No Shear Reinforcement Required
BK75: 43 | BL75: 6.708 | BM75: 80.496 | BN75: 2.58 | BO75: 2.236 | BP75: 2.4806184 | BQ75: 5.31712 | BR75: 6.708 | BS75: -1.39088 | BT75: 6.708 | BU75: 222.9344992 | BV75: 138.7143709 | BW75: 22.93449924 | BX75: 0.43 | BY75: 277.0274963 | BZ75: 0.43 | CA75: 2.58 | CB75: 2.883248149 | CD75: 43 | CE75: 2.58 | CF75: 2.781395349 | FA75: 65
BK76: 42 | BL76: 6.552 | BM76: 78.624 | BN76: 2.52 | BO76: 2.184 | BP76: 2.3115456 | BQ76: 5.306422857 | BR76: 6.552 | BS76: -1.245577143 | BT76: 6.552 | BU76: 234.2807112 | BV76: 141.7313797 | BW76: 34.28071123 | BX76: 0.42 | BY76: 275.4631983 | BZ76: 0.42 | CA76: 2.52 | CB76: 2.968994809 | CD76: 42 | CE76: 2.52 | CF76: 2.847619048 | FA76: 66 | FB76: =IF((($Q$63*1000-$S$114*2-40)/(FA76-1))>300,NA(),IF((($Q$63*1000-$S$114*2-40)/(FA76-1))<(65),NA(),FA76)) ->  | FC76: =IF($FB77*FC$8<$GT$54,NA(),IF($FA74*FC$8>$GT$54,NA(),IF($FB76*FC$8>1.25*$GT$54,NA(),IF($FB76*FC$8<0.9*$GT$54,NA(),$FB76*FC$8)))) ->  | GS76: Vertical Shear reinforcement Y
BK77: 41 | BL77: 6.396 | BM77: 76.752 | BN77: 2.46 | BO77: 2.132 | BP77: 2.1503352 | BQ77: 5.295725714 | BR77: 6.396 | BS77: -1.100274286 | BT77: 6.396 | BU77: 246.5569193 | BV77: 144.8955597 | BW77: 46.55691931 | BX77: 0.41 | BY77: 273.9084456 | BZ77: 0.41 | CA77: 2.46 | CB77: 3.059778619 | CD77: 41 | CE77: 2.46 | CF77: 2.917073171 | FA77: 67 | GS77: Average pressure | GT77: =SUM(GT48:GT49)/2 -> 158.974359 | GU77: kN/m2
BK78: 40 | BL78: 6.24 | BM78: 74.88 | BN78: 2.4 | BO78: 2.08 | BP78: 1.9968 | BQ78: 5.285028571 | BR78: 6.24 | BS78: -0.9549714286 | BT78: 6.24 | BU78: 259.8665865 | BV78: 148.2179487 | BW78: 59.86658654 | BX78: 0.4 | BY78: 272.3632383 | BZ78: 0.4 | CA78: 2.4 | CB78: 3.156043046 | CD78: 40 | CE78: 2.4 | CF78: 2.99 | FA78: 68 | GS78: Shear Force | GT78: =0.5*(GT77+GT48)*GT26*(HD49-GT4*0.001) -> 380.1538462 | GU78: kN
BK79: 39 | BL79: 6.084 | BM79: 73.008 | BN79: 2.34 | BO79: 2.028 | BP79: 1.8507528 | BQ79: 5.274331429 | BR79: 6.084 | BS79: -0.8096685714 | BT79: 6.084 | BU79: 274.3278484 | BV79: 151.7107166 | BW79: 74.32784843 | BX79: 0.39 | BY79: 270.8275763 | BZ79: 0.39 | CA79: 2.34 | CB79: 3.258283951 | CD79: 39 | CE79: 2.34 | CF79: 3.066666667 | FA79: 69 | GS79: v | GT79: =GT78*1000/(GT26*1000000*GT53) -> 0.3017094017 | GU79: N/mm2
BK80: 38 | BL80: 5.928 | BM80: 71.136 | BN80: 2.28 | BO80: 1.976 | BP80: 1.7120064 | BQ80: 5.263634286 | BR80: 5.928 | BS80: -0.6643657143 | BT80: 5.928 | BU80: 290.0760633 | BV80: 155.3873144 | BW80: 90.07606327 | BX80: 0.38 | BY80: 269.3014597 | BZ80: 0.38 | CA80: 2.28 | CB80: 3.367057413 | CD80: 38 | CE80: 2.28 | CF80: 3.147368421 | FA80: 70 | GS80: 100As/bd | GT80: =100*GT66/(GT26*1000*GT28*1000) -> 0.1130973355
BK81: 37 | BL81: 5.772 | BM81: 69.264 | BN81: 2.22 | BO81: 1.924 | BP81: 1.5803736 | BQ81: 5.252937143 | BR81: 5.772 | BS81: -0.5190628571 | BT81: 5.772 | BU81: 307.2668913 | BV81: 159.2626473 | BW81: 107.2668913 | BX81: 0.37 | BY81: 267.7848885 | BZ81: 0.37 | CA81: 2.22 | CB81: 3.482988985 | CD81: 37 | CE81: 2.22 | CF81: 3.232432432 | FA81: 71 | GS81: vc | GT81: =0.79*(GT80^(1/3))*(((400/(GT53*1000))^0.25)/1.25)*((GT5/25)^(1/3)) -> 0.3531375277 | GU81: N/mm2
BK82: 36 | BL82: =$Q$62*$Q$63*(2*BK82%) -> 5.616 | BM82: =$Q$64*BL82*24 -> 67.392 | BN82: =$Q$62*(2*BK82%) -> 2.16 | BO82: =$Q$63*(2*BK82%) -> 1.872 | BP82: 1.4556672 | BQ82: =($GT$12+$GT$13+BM82)/$GT$2 -> 5.24224 | BR82: 5.616 | BS82: =BQ82-BR82 -> -0.37376 | BT82: =BL82 -> 5.616 | BU82: 326.0800315 | BV82: 163.3532764 | BW82: 126.0800315 | BX82: =$Q$64*(2*BK82%) -> 0.36 | BY82: 266.2778626 | BZ82: 0.36 | CA82: =$Q$62*(2*BK82%) -> 2.16 | CB82: 3.606784673 | CD82: 36 | CE82: =$Q$62*2*CD82% -> 2.16 | CF82: 3.322222222 | FA82: 72 | GS82: =IF(GT81>GT79,"No Shear Reinforcement Required","Shear Reinforcement Required") -> No Shear Reinforcement Required
BK83: 35 | BL83: 5.46 | BM83: 65.52 | BN83: 2.1 | BO83: 1.82 | BP83: =(BO83*BN83^2)/6 -> 1.3377 | BQ83: 5.231542857 | BR83: =BL83 -> 5.46 | BS83: -0.2284571429 | BT83: 5.46 | BU83: =($GT$12+$GT$13+$GT$29+$GT$25*BN83*BO83*24)/(BN83*BO83)+($GT$14+$GT$15+($GT$28*($GT$16+$GT$17)))/BP83 -> 346.7237796 | BV83: =($GT$12+$GT$13+BM83)/BL83 -> 167.6776557 | BW83: =BU83-200 -> 146.7237796 | BX83: 0.35 | BY83: =(IF($GT$7=0,0,0.5*BX83*MIN($GT$27)*(((1+SIN(RADIANS($GT$7)))/(1-SIN(RADIANS($GT$7)))*$GT$8*$GT$25)+((1+SIN(RADIANS($GT$7)))/(1-SIN(RADIANS($GT$7)))*($GT$25+BX83)*$GT$8)))+(TAN(RADIANS($GT$7))*($GT$12+$GT$26*$GT$27*BX83*24)))+(IF($GT$7=0,2*$GT$9*MIN($GT$27)*BX83+(0.5*MIN($GT$27)*BX83*(($GT$7*$GT$25)+($GT$8*(BX83+$GT$25)))),0)) -> 264.7803821 | BZ83: =BX83 -> 0.35 | CA83: 2.1 | CB83: =(CA83*($GT$12+$GT$13)+6*($GT$14+$GT$15)+6*($GT$16+$GT$17)*$Q$64)/(CA83^2*($S$9-24*$Q$64-24*$Q$61)) -> 3.739244042 | CD83: 35 | CE83: 2.1 | CF83: =$CD$16/CE83 -> 3.417142857 | FA83: 73
BK84: 34 | BL84: 5.304 | BM84: 63.648 | BN84: 2.04 | BO84: 1.768 | BP84: 1.2262848 | BQ84: 5.220845714 | BR84: 5.304 | BS84: -0.08315428571 | BT84: 5.304 | BU84: 369.4406206 | BV84: 172.2564103 | BW84: 169.4406206 | BX84: 0.34 | BY84: 263.292447 | BZ84: 0.34 | CA84: 2.04 | CB84: 3.881275923 | CD84: 34 | CE84: 2.04 | CF84: 3.517647059 | FA84: 74 | GS84: Punching Shear Check
BK85: 33 | BL85: 5.148 | BM85: 61.776 | BN85: 1.98 | BO85: 1.716 | BP85: 1.1212344 | BQ85: 5.210148571 | BR85: 5.148 | BS85: 0.06214857143 | BT85: 5.148 | BU85: 394.5141291 | BV85: 177.1126651 | BW85: 194.5141291 | BX85: 0.33 | BY85: 261.8140572 | BZ85: 0.33 | CA85: 1.98 | CB85: 4.033917339 | CD85: 33 | CE85: 1.98 | CF85: 3.624242424 | FA85: 75 | GS85: perimeter at 1.5d | GT85: =(GT3+3000*GT53)*2+(GT4+3000*GT53)*2 -> 6640 | GU85: mm
BK86: 32 | BL86: 4.992 | BM86: 59.904 | BN86: 1.92 | BO86: 1.664 | BP86: 1.0223616 | BQ86: 5.199451429 | BR86: 4.992 | BS86: 0.2074514286 | BT86: 4.992 | BU86: 422.2775378 | BV86: 182.2724359 | BW86: 222.2775378 | BX86: 0.32 | BY86: 260.3452127 | BZ86: 0.32 | CA86: 1.92 | CB86: 4.198356443 | CD86: 32 | CE86: 1.92 | CF86: 3.7375 | FA86: 76 | GS86: Shear Force on critical perimeter | GT86: =GT77*(GT26*GT27-(GT3*0.001+3*GT53)^2) -> 801.9302564 | GU86: kN
BK87: 31 | BL87: 4.836 | BM87: 58.032 | BN87: 1.86 | BO87: 1.612 | BP87: 0.9294792 | BQ87: 5.188754286 | BR87: 4.836 | BS87: 0.3527542857 | BT87: 4.836 | BU87: 453.124449 | BV87: 187.7650951 | BW87: 253.124449 | BX87: 0.31 | BY87: 258.8859136 | BZ87: 0.31 | CA87: 1.86 | CB87: 4.375960472 | CD87: 31 | CE87: 1.86 | CF87: 3.858064516 | FA87: 77 | GS87: v | GT87: =GT86*1000/(GT85*GT53*1000) -> 0.2875538785 | GU87: N/mm2
H88: Sliding Resistance | AF88: =IF(GT44>GT22,"Acceptable","Pad too small") -> Acceptable | BK88: 30 | BL88: 4.68 | BM88: 56.16 | BN88: 1.8 | BO88: 1.56 | BP88: 0.8424 | BQ88: 5.178057143 | BR88: 4.68 | BS88: 0.4980571429 | BT88: 4.68 | BU88: 487.5223172 | BV88: 193.6239316 | BW88: 287.5223172 | BX88: 0.3 | BY88: 257.4361599 | BZ88: 0.3 | CA88: 1.8 | CB88: 4.568310032 | CD88: 30 | CE88: 1.8 | CF88: 3.986666667 | FA88: 78 | GS88: =IF(GT87<GT73,"No Punching Shear Reinforcement Required","Punching Shear Reinforcement Required") -> No Punching Shear Reinforcement Required
BK89: 29 | BL89: 4.524 | BM89: 54.288 | BN89: 1.74 | BO89: 1.508 | BP89: 0.7609368 | BQ89: 5.16736 | BR89: 4.524 | BS89: 0.64336 | BT89: 4.524 | BU89: 526.0295488 | BV89: 199.8868258 | BW89: 326.0295488 | BX89: 0.29 | BY89: 255.9959516 | BZ89: 0.29 | CA89: 1.74 | CB89: 4.777241432 | CD89: 29 | CE89: 1.74 | CF89: 4.124137931 | FA89: 79
BK90: 28 | BL90: 4.368 | BM90: 52.416 | BN90: 1.68 | BO90: 1.456 | BP90: 0.6849024 | BQ90: 5.156662857 | BR90: 4.368 | BS90: 0.7886628571 | BT90: 4.368 | BU90: 569.3173638 | BV90: 206.5970696 | BW90: 369.3173638 | BX90: 0.28 | BY90: 254.5652886 | BZ90: 0.28 | CA90: 1.68 | CB90: 5.004899311 | CD90: 28 | CE90: 1.68 | CF90: 4.271428571 | FA90: 80
BK91: 27 | BL91: 4.212 | BM91: 50.544 | BN91: 1.62 | BO91: 1.404 | BP91: 0.6141096 | BQ91: 5.145965714 | BR91: 4.212 | BS91: 0.9339657143 | BT91: 4.212 | BU91: 618.1979816 | BV91: 213.8043685 | BW91: 418.1979816 | BX91: 0.27 | BY91: 253.1441709 | BZ91: 0.27 | CA91: 1.62 | CB91: 5.253802572 | CD91: 27 | CE91: 1.62 | CF91: 4.42962963 | FA91: 81 | FD91: =IF($FB92*FD$8<$GT$54,NA(),IF($FA89*FD$8>$GT$54,NA(),IF($FB91*FD$8>1.25*$GT$54,NA(),IF($FB91*FD$8<0.9*$GT$54,NA(),$FB91*FD$8)))) ->  | FE91: =IF($FB92*FE$8<$GT$54,NA(),IF($FA89*FE$8>$GT$54,NA(),IF($FB91*FE$8>1.25*$GT$54,NA(),IF($FB91*FE$8<0.9*$GT$54,NA(),$FB91*FE$8)))) ->  | FF91: =IF($FB92*FF$8<$GT$54,NA(),IF($FA89*FF$8>$GT$54,NA(),IF($FB91*FF$8>1.25*$GT$54,NA(),IF($FB91*FF$8<0.9*$GT$54,NA(),$FB91*FF$8)))) ->  | FG91: =IF($FB92*FG$8<$GT$54,NA(),IF($FA89*FG$8>$GT$54,NA(),IF($FB91*FG$8>1.25*$GT$54,NA(),IF($FB91*FG$8<0.9*$GT$54,NA(),$FB91*FG$8)))) ->  | FH91: =IF($FB92*FH$8<$GT$54,NA(),IF($FA89*FH$8>$GT$54,NA(),IF($FB91*FH$8>1.25*$GT$54,NA(),IF($FB91*FH$8<0.9*$GT$54,NA(),$FB91*FH$8)))) ->  | FI91: =IF($FB92*FI$8<$GT$54,NA(),IF($FA89*FI$8>$GT$54,NA(),IF($FB91*FI$8>1.25*$GT$54,NA(),IF($FB91*FI$8<0.9*$GT$54,NA(),$FB91*FI$8)))) ->  | FJ91: =IF($FB92*FJ$8<$GT$54,NA(),IF($FA89*FJ$8>$GT$54,NA(),IF($FB91*FJ$8>1.25*$GT$54,NA(),IF($FB91*FJ$8<0.9*$GT$54,NA(),$FB91*FJ$8)))) ->  | FK91: =IF($FB92*FK$8<$GT$54,NA(),IF($FA89*FK$8>$GT$54,NA(),IF($FB91*FK$8>1.25*$GT$54,NA(),IF($FB91*FK$8<0.9*$GT$54,NA(),$FB91*FK$8)))) ->  | FL91: =IF($FB92*FL$8<$GT$54,NA(),IF($FA89*FL$8>$GT$54,NA(),IF($FB91*FL$8>1.25*$GT$54,NA(),IF($FB91*FL$8<0.9*$GT$54,NA(),$FB91*FL$8)))) ->  | FM91: =IF($FB92*FM$8<$GT$54,NA(),IF($FA89*FM$8>$GT$54,NA(),IF($FB91*FM$8>1.25*$GT$54,NA(),IF($FB91*FM$8<0.9*$GT$54,NA(),$FB91*FM$8)))) ->  | FN91: =IF($FB92*FN$8<$GT$54,NA(),IF($FA89*FN$8>$GT$54,NA(),IF($FB91*FN$8>1.25*$GT$54,NA(),IF($FB91*FN$8<0.9*$GT$54,NA(),$FB91*FN$8)))) ->  | FO91: =IF($FB92*FO$8<$GT$54,NA(),IF($FA89*FO$8>$GT$54,NA(),IF($FB91*FO$8>1.25*$GT$54,NA(),IF($FB91*FO$8<0.9*$GT$54,NA(),$FB91*FO$8)))) ->  | FP91: =IF($FB92*FP$8<$GT$54,NA(),IF($FA89*FP$8>$GT$54,NA(),IF($FB91*FP$8>1.25*$GT$54,NA(),IF($FB91*FP$8<0.9*$GT$54,NA(),$FB91*FP$8)))) ->  | FQ91: =IF($FB92*FQ$8<$GT$54,NA(),IF($FA89*FQ$8>$GT$54,NA(),IF($FB91*FQ$8>1.25*$GT$54,NA(),IF($FB91*FQ$8<0.9*$GT$54,NA(),$FB91*FQ$8)))) -> 
BK92: 26 | BL92: 4.056 | BM92: 48.672 | BN92: 1.56 | BO92: 1.352 | BP92: 0.5483712 | BQ92: 5.135268571 | BR92: 4.056 | BS92: 1.079268571 | BT92: 4.056 | BU92: 673.661298 | BV92: 221.566075 | BW92: 473.661298 | BX92: 0.26 | BY92: 251.7325987 | BZ92: 0.26 | CA92: 1.56 | CB92: 5.526927649 | CD92: 26 | CE92: 1.56 | CF92: 4.6 | FA92: 82
BK93: 25 | BL93: 3.9 | BM93: 46.8 | BN93: 1.5 | BO93: 1.3 | BP93: 0.4875 | BQ93: 5.124571429 | BR93: 3.9 | BS93: 1.224571429 | BT93: 3.9 | BX93: 0.25 | BY93: 250.3305717 | BZ93: 0.25 | CD93: 25 | CE93: 1.5 | CF93: 4.784 | FA93: 83
BK94: 24 | BL94: 3.744 | BM94: 44.928 | BN94: 1.44 | BO94: 1.248 | BP94: 0.4313088 | BQ94: 5.113874286 | BR94: 3.744 | BS94: 1.369874286 | BT94: 3.744 | BX94: 0.24 | BY94: 248.9380902 | BZ94: 0.24 | FA94: 84
BK95: 23 | BL95: 3.588 | BM95: 43.056 | BN95: 1.38 | BO95: 1.196 | BP95: 0.3796104 | BQ95: 5.103177143 | BR95: 3.588 | BS95: 1.515177143 | BT95: 3.588 | BX95: 0.23 | BY95: 247.555154 | BZ95: 0.23 | FA95: 85
BK96: 22 | BL96: 3.432 | BM96: 41.184 | BN96: 1.32 | BO96: 1.144 | BP96: 0.3322176 | BQ96: 5.09248 | BR96: 3.432 | BS96: 1.66048 | BT96: 3.432 | BX96: 0.22 | BY96: 246.1817631 | BZ96: 0.22 | FA96: 86
BK97: 21 | BL97: 3.276 | BM97: 39.312 | BN97: 1.26 | BO97: 1.092 | BP97: 0.2889432 | BQ97: 5.081782857 | BR97: 3.276 | BS97: 1.805782857 | BT97: 3.276 | BX97: 0.21 | BY97: 244.8179176 | BZ97: 0.21 | FA97: 87
BK98: 20 | BL98: 3.12 | BM98: 37.44 | BN98: 1.2 | BO98: 1.04 | BP98: 0.2496 | BQ98: 5.071085714 | BR98: 3.12 | BS98: 1.951085714 | BT98: 3.12 | BX98: 0.2 | BY98: 243.4636175 | BZ98: 0.2 | FA98: 88
BK99: 19 | BL99: 2.964 | BM99: 35.568 | BN99: 1.14 | BO99: 0.988 | BP99: 0.2140008 | BQ99: 5.060388571 | BR99: 2.964 | BS99: 2.096388571 | BT99: 2.964 | BX99: 0.19 | BY99: 242.1188628 | BZ99: 0.19 | FA99: 89
BK100: 18 | BL100: 2.808 | BM100: 33.696 | BN100: 1.08 | BO100: 0.936 | BP100: 0.1819584 | BQ100: 5.049691429 | BR100: 2.808 | BS100: 2.241691429 | BT100: 2.808 | BX100: 0.18 | BY100: 240.7836534 | BZ100: 0.18 | FA100: 90
BK101: 17 | BL101: 2.652 | BM101: 31.824 | BN101: 1.02 | BO101: 0.884 | BP101: 0.1532856 | BQ101: 5.038994286 | BR101: 2.652 | BS101: 2.386994286 | BT101: 2.652 | BX101: 0.17 | BY101: 239.4579893 | BZ101: 0.17 | FA101: 91
BK102: 16 | BL102: 2.496 | BM102: 29.952 | BN102: 0.96 | BO102: 0.832 | BP102: 0.1277952 | BQ102: 5.028297143 | BR102: 2.496 | BS102: 2.532297143 | BT102: 2.496 | BX102: 0.16 | BY102: 238.1418706 | BZ102: 0.16 | FA102: 92
BK103: 15 | BL103: 2.34 | BM103: 28.08 | BN103: 0.9 | BO103: 0.78 | BP103: 0.1053 | BQ103: 5.0176 | BR103: 2.34 | BS103: 2.6776 | BT103: 2.34 | BX103: 0.15 | BY103: 236.8352973 | BZ103: 0.15 | FA103: 93
B104: Your Logo / Company Details Here | G104: Project: | M104: =IF(M2="","",M2) ->  | AF104: By: | BK104: 14 | BL104: 2.184 | BM104: 26.208 | BN104: 0.84 | BO104: 0.728 | BP104: 0.0856128 | BQ104: 5.006902857 | BR104: 2.184 | BS104: 2.822902857 | BT104: 2.184 | BX104: 0.14 | BY104: 235.5382693 | BZ104: 0.14 | FA104: 94
G105: Calculation: | M105: =IF(M3="","",M3) -> Single Pad Foundation Design (BS) - Complex | BK105: 13 | BL105: 2.028 | BM105: 24.336 | BN105: 0.78 | BO105: 0.676 | BP105: 0.0685464 | BQ105: 4.996205714 | BR105: 2.028 | BS105: 2.968205714 | BT105: 2.028 | BX105: 0.13 | BY105: 234.2507867 | BZ105: 0.13 | FA105: 95
AF106: Approved: | BK106: 12 | BL106: 1.872 | BM106: 22.464 | BN106: 0.72 | BO106: 0.624 | BP106: 0.0539136 | BQ106: 4.985508571 | BR106: 1.872 | BS106: 3.113508571 | BT106: 1.872 | BX106: 0.12 | BY106: 232.9728495 | BZ106: 0.12 | FA106: 96
G107: Sheet Number: | M107: 3 | T107: Date: | BK107: 11 | BL107: 1.716 | BM107: 20.592 | BN107: 0.66 | BO107: 0.572 | BP107: 0.0415272 | BQ107: 4.974811429 | BR107: 1.716 | BS107: 3.258811429 | BT107: 1.716 | BX107: 0.11 | BY107: 231.7044576 | BZ107: 0.11 | FA107: 97
BK108: 10 | BL108: 1.56 | BM108: 18.72 | BN108: 0.6 | BO108: 0.52 | BP108: 0.0312 | BQ108: 4.964114286 | BR108: 1.56 | BS108: 3.404114286 | BT108: 1.56 | BX108: 0.1 | BY108: 230.4456111 | BZ108: 0.1 | FA108: 98
H109: Reinforcement Design | BK109: 9 | BL109: 1.404 | BM109: 16.848 | BN109: 0.54 | BO109: 0.468 | BP109: 0.0227448 | BQ109: 4.953417143 | BR109: 1.404 | BS109: 3.549417143 | BT109: 1.404 | BX109: 0.09 | BY109: 229.1963099 | BZ109: 0.09 | FA109: 99
BK110: 8 | BL110: 1.248 | BM110: 14.976 | BN110: 0.48 | BO110: 0.416 | BP110: 0.0159744 | BQ110: 4.94272 | BR110: 1.248 | BS110: 3.69472 | BT110: 1.248 | BX110: 0.08 | BY110: 227.9565541 | BZ110: 0.08 | FA110: 100
H111: Concrete Grade | S111: 40 | U111: N/mm² | BK111: 7 | BL111: 1.092 | BM111: 13.104 | BN111: 0.42 | BO111: 0.364 | BP111: 0.0107016 | BQ111: 4.932022857 | BR111: 1.092 | BS111: 3.840022857 | BT111: 1.092 | BX111: 0.07 | BY111: 226.7263436 | BZ111: 0.07
H112: Steel Grade | S112: 500 | U112: N/mm² | BK112: 6 | BL112: 0.936 | BM112: 11.232 | BN112: 0.36 | BO112: 0.312 | BP112: 0.0067392 | BQ112: 4.921325714 | BR112: 0.936 | BS112: 3.985325714 | BT112: 0.936 | BX112: 0.06 | BY112: 225.5056785 | BZ112: 0.06 | FA112: 1 | FB112: =IFERROR(FB11,"") -> 
H113: Factor of Safety (Steel) | S113: 1.15 | BK113: 5 | BL113: 0.78 | BM113: 9.36 | BN113: 0.3 | BO113: 0.26 | BP113: 0.0039 | BQ113: 4.910628571 | BR113: 0.78 | BS113: 4.130628571 | BT113: 0.78 | BX113: 0.05 | BY113: 224.2945588 | BZ113: 0.05 | FA113: 2 | FB113: =IFERROR(FB12,"") -> 
H114: Cover | S114: 40 | U114: mm | BK114: 4 | BL114: =$Q$62*$Q$63*(2*BK114%) -> 0.624 | BM114: =$Q$64*BL114*24 -> 7.488 | BN114: 0.24 | BO114: 0.208 | BP114: 0.0019968 | BQ114: =($GT$12+$GT$13+BM114)/$GT$2 -> 4.899931429 | BR114: 0.624 | BS114: =BQ114-BR114 -> 4.275931429 | BT114: 0.624 | BX114: 0.04 | BY114: 223.0929844 | BZ114: 0.04 | FA114: 3
BK115: 3 | BL115: =$Q$62*$Q$63*(2*BK115%) -> 0.468 | BM115: =$Q$64*BL115*24 -> 5.616 | BN115: 0.18 | BO115: 0.156 | BP115: 0.0008424 | BQ115: =($GT$12+$GT$13+BM115)/$GT$2 -> 4.889234286 | BR115: 0.468 | BS115: =BQ115-BR115 -> 4.421234286 | BT115: 0.468 | BX115: 0.03 | BY115: 221.9009554 | BZ115: 0.03 | FA115: 4
H116: Bending Reinforcement (X Direction) | BK116: 2 | BL116: =$Q$62*$Q$63*(2*BK116%) -> 0.312 | BM116: =$Q$64*BL116*24 -> 3.744 | BN116: 0.12 | BO116: 0.104 | BP116: 0.0002496 | BQ116: =($GT$12+$GT$13+BM116)/$GT$2 -> 4.878537143 | BR116: 0.312 | BS116: =BQ116-BR116 -> 4.566537143 | BT116: 0.312 | BX116: 0.02 | BY116: 220.7184718 | BZ116: 0.02 | FA116: 5
BK117: 1 | BL117: =$Q$62*$Q$63*(2*BK117%) -> 0.156 | BM117: =$Q$64*BL117*24 -> 1.872 | BN117: 0.06 | BO117: 0.052 | BP117: 3.12e-05 | BQ117: =($GT$12+$GT$13+BM117)/$GT$2 -> 4.86784 | BR117: 0.156 | BS117: =BQ117-BR117 -> 4.71184 | BT117: 0.156 | BX117: 0.01 | BY117: 219.5455335 | BZ117: 0.01 | EI117: =MIN(EN27:EN31) -> 0 | EJ117: =MIN(EO27:EO31) -> 0.1333333333 | EL117: =EI117+(EI118-EI117)/20 -> 0.1 | EM117: =EM130 -> 0.376 | EN117: =S165&"H"&S164&"-01-"&ROUNDDOWN(S166,0) -> 15H12-01-207 | FA117: 6
H118: Reinforcement Required | S118: =GT54 -> 2410.495647 | V118: mm² | EI118: =MAX(EN27:EN31) -> 2 | EJ118: =MAX(EO27:EO31) -> 1.866666667 | EL118: =(EL119-EL117)*0.9+EL117 -> 1.72 | EM118: =EM117 -> 0.376 | FA118: 7
H119: Reinforcement Diameter | S119: 16 | V119: mm | AR119: =S120 -> 12 | AS119: =S122 -> 2412.743158 | EL119: =EI118-(EI118-EI117)/20 -> 1.9 | EM119: =EM117 -> 0.376 | FA119: 8
H120: Number of Bars | S120: 12 | FA120: 9
H121: Spacing | S121: =(Q63*1000-S114*2-S119)/(S120-1) -> 227.6363636 | V121: mm | AF121: =IF(S121>300,"Spacing Too Large",IF(S121<65,"Spacing Too Small","Acceptable")) -> Acceptable | EL121: =EL126 -> 0.28 | EM121: =EJ117+(EJ118-EJ117)/20 -> 0.22 | EN121: =S120&"H"&S119&"-02-"&ROUNDDOWN(S121,0) -> 12H16-02-227 | FA121: 10 | FB121: 10
H122: Area Chosen | S122: =VLOOKUP(S119,ES7:ET21,2,FALSE)*S120 -> 2412.743158 | V122: mm² | AF122: =IF(S122>S118,"Acceptable","Insufficient") -> Acceptable | EL122: =EL121 -> 0.28 | EM122: =(EM123-EM121)*0.9+EM121 -> 1.624 | FA122: 11 | FB122: 11
EL123: =EL122 -> 0.28 | EM123: =EJ118-(EJ118-EJ117)/20 -> 1.78 | FA123: 12 | FB123: 12
FA124: 13 | FB124: 13
EL125: =EL117 -> 0.1 | EM125: =(EM123-EM121)*0.8+EM121 -> 1.468 | EN125: X1 | FA125: 14 | FB125: 14
EL126: =(EL127-EL125)*0.1+EL125 -> 0.28 | EM126: =EM125 -> 1.468 | FA126: 15 | FB126: 15
EL127: =EL119 -> 1.9 | EM127: =EM126 -> 1.468 | ER127: 1 | ES127: =IF(ER127<=$EO$138,ER127,NA()) -> 1 | ET127: =EL136+0.05 -> 0.15 | EU127: =IF(ES127="NA()",NA(),$EM$137+0.05) -> 2.4275 | FA127: 16 | FB127: 16
ER128: 2 | ES128: =IF(ER128<=$EO$138,ER128,NA()) -> 2 | ET128: =IF(ES128="NA()",NA(),(($EL$140-$EL$136-0.1)/($EO$138-1))+ET127) -> 0.3045454545 | EU128: =IF(ES128="NA()",NA(),$EM$137+0.05) -> 2.4275 | FA128: 17 | FB128: 17
EL129: =(EM123-EM121)*0.9+EM121 -> 1.624 | EM129: =EM121 -> 0.22 | EN129: Y1 | ER129: 3 | ES129: 3 | ET129: =IF(ES129="NA()",NA(),(($EL$140-$EL$136-0.1)/($EO$138-1))+ET128) -> 0.4590909091 | EU129: 2.4275 | FA129: 18 | FB129: 18
EL130: =EL129 -> 1.624 | EM130: =(EM131-EM129)*0.1+EM129 -> 0.376 | ER130: 4 | ES130: 4 | ET130: 0.6136363636 | EU130: 2.4275 | FA130: 19 | FB130: 19
EL131: =EL130 -> 1.624 | EM131: =EM123 -> 1.78 | ER131: 5 | ES131: 5 | ET131: 0.7681818182 | EU131: 2.4275 | FA131: 20 | FB131: 20
ER132: 6 | ES132: 6 | ET132: 0.9227272727 | EU132: 2.4275 | FA132: 21 | FB132: 21
ER133: 7 | ES133: 7 | ET133: 1.077272727 | EU133: 2.4275 | FA133: 22 | FB133: 22
ER134: 8 | ES134: 8 | ET134: 1.231818182 | EU134: 2.4275 | FA134: 23 | FB134: 23
ER135: 9 | ES135: 9 | ET135: 1.386363636 | EU135: 2.4275 | FA135: 24 | FB135: 24
EL136: =EL137 -> 0.1 | EM136: =EM148 -> 2.625 | ER136: 10 | ES136: 10 | ET136: 1.540909091 | EU136: 2.4275 | FA136: 25 | FB136: 25
EI137: =MIN(EN7:EN11) -> 0 | EJ137: =MIN(EO7:EO11) -> 2.333333333 | EL137: =EI137+(EI138-EI137)/20 -> 0.1 | EM137: =EM155 -> 2.3775 | ER137: 11 | ES137: 11 | ET137: 1.695454545 | EU137: 2.4275 | FA137: 26 | FB137: 26
EI138: =MAX(EN7:EN11) -> 2 | EJ138: =MAX(EO7:EO11) -> 2.666666667 | EL138: =(EL139-EL137)*0.9+EL137 -> 1.72 | EM138: =EM137 -> 2.3775 | EO138: =S120 -> 12 | ER138: 12 | ES138: 12 | ET138: 1.85 | EU138: 2.4275 | FA138: 27 | FB138: 27
EL139: =EI138-(EI138-EI137)/20 -> 1.9 | EM139: =EM137 -> 2.3775 | ER139: 13 | FA139: 28 | FB139: 28
EL140: =EL139 -> 1.9 | EM140: =EM136 -> 2.625 | ER140: 14 | FA140: 29 | FB140: 29
ER141: 15 | FA141: 30 | FB141: 30
ER142: 16 | FA142: 31 | FB142: 31
ER143: 17 | FA143: 32 | FB143: 32
ER144: 18 | FA144: 33 | FB144: 33
ER145: 19 | FA145: 34 | FB145: 34
EL146: =EL151 -> 0.28 | EM146: =EJ137+(EJ138-EJ137)/20 -> 2.35 | ER146: 20 | FA146: 35 | FB146: 35
EL147: =EL146 -> 0.28 | EM147: =(EM148-EM146)*0.9+EM146 -> 2.5975 | ER147: 21 | FA147: 36 | FB147: 36
EL148: =EL147 -> 0.28 | EM148: =EJ138-(EJ138-EJ137)/8 -> 2.625 | ER148: 22 | FA148: 37 | FB148: 37
ER149: 23 | FA149: 38 | FB149: 38
EL150: =EL137 -> 0.1 | EM150: =(EL139-EL137)*0.9+EL137 -> 1.72 | ER150: 24 | FA150: 39 | FB150: 39
EL151: =(EL152-EL150)*0.1+EL150 -> 0.28 | EM151: =EM150 -> 1.72 | ER151: 25 | FA151: 40
EL152: =EL139 -> 1.9 | EM152: =EM151 -> 1.72 | ER152: 26 | FA152: 41
ER153: 27 | FA153: 42
EL154: =(EM148-EM146)*0.9+EM146 -> 2.5975 | EM154: =EM146 -> 2.35 | ER154: 28 | FA154: 43
EL155: =EL154 -> 2.5975 | EM155: =(EM156-EM154)*0.1+EM154 -> 2.3775 | ER155: 29 | FA155: 44
B156: Your Logo / Company Details Here | G156: Project: | AF156: By: | EL156: =EL155 -> 2.5975 | EM156: =EM148 -> 2.625 | ER156: 30 | FA156: 45
G157: Calculation: | M157: =IF(M3="","",M3) -> Single Pad Foundation Design (BS) - Complex | ER157: 31 | FA157: 46
AF158: Approved: | ER158: 32 | FA158: 47
G159: Sheet Number: | M159: 4 | T159: Date: | ER159: 33 | FA159: 48
ER160: 34 | FA160: 49
H161: Bending Reinforcement (Y Direction) | ER161: 35 | FA161: 50
ER162: 36 | FA162: 51
H163: Reinforcement Required | S163: =GT63 -> 1662.423078 | V163: mm² | ER163: 37 | FA163: 52
H164: Reinforcement Diameter | S164: 12 | V164: mm | ER164: 38 | FA164: 53
H165: Number of Bars | S165: 15 | ER165: 39 | FA165: 54
H166: Spacing | S166: =(Q62*1000-S114*2-S164)/(S165-1) -> 207.7142857 | V166: mm | AF166: =IF(S166>300,"Spacing Too Large",IF(S166<65,"Spacing Too Small","Acceptable")) -> Acceptable | ER166: 40 | FA166: 55
H167: Area Chosen | S167: =VLOOKUP(S164,ES7:ET21,2,FALSE)*S165 -> 1696.460033 | V167: mm² | AF167: =IF(S167>S163,"Acceptable","Insufficient") -> Acceptable | ER167: 41 | FA167: 56
ER168: 42 | FA168: 57
ER169: 43 | FA169: 58
ER170: 44 | FA170: 59
ER171: 45 | FA171: 60
ER172: 46 | FA172: 61
ER173: 47 | FA173: 62
ER174: 48 | FA174: 63
ER175: 49 | FA175: 64
ER176: 50 | FA176: 65
ER177: 51 | FA177: 66 | FB177: =IFERROR(FB76,"") -> 
ER178: 52 | FA178: 67
ER179: 53 | FA179: 68
ER180: 54 | FA180: 69
ER181: 55 | FA181: 70
ER182: 56 | FA182: 71
ER183: 57 | FA183: 72
ER184: 58 | FA184: 73
ER185: 59 | FA185: 74
ER186: 60 | FA186: 75
ER187: 61 | FA187: 76
ER188: 62 | FA188: 77
ER189: 63 | FA189: 78
ER190: 64 | FA190: 79
ER191: 65 | FA191: 80
ER192: 66 | ES192: =IF(ER192<=$EO$138,ER192,NA()) ->  | EU192: =IF(ES192="NA()",NA(),$EM$137+0.05) ->  | FA192: 81
ER193: 67 | ET193: =IF(ES193="NA()",NA(),(($EL$140-$EL$136-0.1)/($EO$138-1))+ET192) ->  | FA193: 82
ER194: 68 | FA194: 83
ER195: 69 | FA195: 84
ER196: 70 | FA196: 85
ER197: 71 | FA197: 86
ER198: 72 | FA198: 87
ER199: 73 | FA199: 88
ER200: 74 | FA200: 89
... 322 more rows
